{"text_format":"3","workbook":"xlsx","n_sheets":13,"sheets":["DANE","TER","DROGA","Roboty inżynieryjne","KD","KS","W","GAZ","Teletechnika","En","Os","Zasilanie","Melioracja"],"not_rendered":{"macros":1,"external_links":1,"defined_names":24,"comments":10},"read":"whole","date_system":"1900"}

{"sheet":"DANE","index":0,"n_rows":36,"n_cols":3,"rows_kept":36}
["INFO"]
["Numer",134]
["Temat","Aktualizacja i optymalizacja dokumentacji projektowej zadania wraz z pełnieniem nadzoru autorskiego podczas realizacji Inwestycji tj.: ”Rozbudowa drogi wojewódzkiej nr 548 Stolno-Wąbrzeźno od km 0+005 do km 29+619 z wyłączeniem węzła autostradowego w m. Lisewo od km 14+144 do km 15+146” \nOdcinek nr 2 – od km 15+146 do km 29+619"]
[]
["CPV"]
["45000000-9","Roboty budowlane w zakresie wznoszenia kompletnych obiektów budowlanych lub ich części oraz roboty w zakresie inżynierii lądowej i wodnej "]
["45111000-8","Roboty w zakresie burzenia, roboty ziemne"]
["45220000-5","Przepusty pod koroną drogi"]
["45221110-6","Roboty budowlane w zakresie mostów"]
["45221120-9","Roboty budowlane w zakresie wiaduktów"]
["45230000-8","Roboty budowlane w zakresie budowy rurociągów, linii komunikacyjnych i elektroenergetycznych, autostrad, dróg, lotnisk i kolei; wyrównywanie terenu"]
["45231220-3","Roboty budowlane w zakresie gazociągów"]
["45231300-8","Roboty budowlane w zakresie budowy wodociągów i rurociągów do odprowadzania ścieków"]
["45231400-9","Roboty budowlane w zakresie budowy linii energetycznych"]
["45232310-8","Roboty budowlane w zakresie linii telefonicznych"]
["45262522-6","Ekarany akustyczne"]
["45332000-3","Roboty instalacyjne wodne i kanalizacyjne"]
["45223500-1","Konstrukcje z betonu zbrojonego"]
["45213320-2","Roboty budowlane w zakresie budowy obieków budowlanych związanych z transportem kolejowym"]
[]
["Branza",null,"KOLORY"]
["D","BRANŻA DROGOWA"]
["M","BRANŻA MOSTOWA"]
["K-Ekr","BRANŻA KONSTRUKCYJNA - EKRANY AKUSTYCZNE"]
["K-Rozb","BRANŻA KONSTRUKCYJNA - ROZBIÓRKI"]
["S-Kd","BRANŻA SANITARNA - KANALIZACJA DESZCZOWA"]
["S-Ks","BRANŻA SANITARNA - KANALIZACJA SANITARNA"]
["S-G","BRANŻA SANITARNA - SIEĆ GAZOWA"]
["S-W","BRANŻA SANITARNA - SIEĆ WODOCIĄGOWA"]
["E-Osw","BRANŻA ELEKTROENERGETYCZNA - OŚWIETLENIE"]
["E-nN","BRANŻA ELEKTROENERGETYCZNA - SIEĆ NISKIEGO NAPIĘCIA"]
["E-SN","BRANŻA ELEKTROENERGETYCZNA - SIEĆ ŚREDNIEGO NAPIĘCIA"]
["E-WN","BRANŻA ELEKTROENERGETYCZNA - SIEĆ WYSOKIEGO NAPIĘCIA"]
["T","BRANŻA TELEKOMUNIKACYJNA"]
["H","BRANŻA MELIORACYJNA"]
["Z","BRANŻA DENDROLOGICZNA"]

{"sheet":"TER","index":1,"n_rows":27,"n_cols":5,"rows_kept":27,"merged":[[0,0,0,2],[1,1,1,2],[2,1,2,2]]}
["KOSZTORYS OFERTOWY 22.07"]
["Inwestycja",{"$f":"DANE!B3","v":"Aktualizacja i optymalizacja dokumentacji projektowej zadania wraz z pełnieniem nadzoru autorskiego podczas realizacji Inwestycji tj.: ”Rozbudowa drogi wojewódzkiej nr 548 Stolno-Wąbrzeźno od km 0+005 do km 29+619 z wyłączeniem węzła autostradowego w m. Lisewo od km 14+144 do km 15+146” \nOdcinek nr 2 – od km 15+146 do km 29+619"}]
["kod CPV:","45230000-8 Roboty budowlane w zakresie budowy rurociągów, linii komunikacyjnych i elektroenergetycznych, autostrad, dróg, lotnisk i kolei; wyrównywanie terenu"]
["Lp.","TABELA ELEMENTÓW ROZLICZENIOWYCH"]
[1,"BRANŻA DROGOWA",null,null,"DROGA"]
[2,"BRANŻA MOSTOWA",null,null,"Roboty inżynieryjne"]
[3,"BRANŻA SANITARNA"]
[null,{"$f":"UPPER(INDIRECT(CONCATENATE(\"'\",E8,\"'!C3\"),TRUE))","v":"KANALIZACJA DESZCZOWA"},null,null,"kd"]
[null,{"$f":"UPPER(INDIRECT(CONCATENATE(\"'\",E9,\"'!C3\"),TRUE))","v":"KANALIZACJA SANITARNA"},null,null,"ks"]
[null,"WODOCIĄG",null,null,"w"]
[null,{"$f":"UPPER(INDIRECT(CONCATENATE(\"'\",E11,\"'!C3\"),TRUE))","v":"GAZOCIĄG"},null,null,"gaz"]
[4,"BRANŻA ELEKTROENERGETYCZNA"]
[null,"PRZEBUDOWA SIECI ELEKTROENERGETYCZNYCH",null,null,"En"]
[null,"BUDOWA OŚWIETLENIA DROGOWEGO",null,null,"Os"]
[null,{"$f":"UPPER(INDIRECT(CONCATENATE(\"'\",E15,\"'!C3\"),TRUE))","v":"ZASILANIE OBIEKTÓW"},null,null,"Zasilanie"]
[5,"BRANŻA TELEKOMUNIKACYJNA",null,null,"TELETECHNIKA"]
[6,"BRANŻA MELIORACYJNA",null,null,"MELIORACJA"]
[]
[null,"SUMA NETTO"]
[null,"VAT 23%"]
[null,"SUMA BRUTTO"]
[]
[]
[]
[]
["________________",null,"______________"]
["miejscowość, data",null,"podpis Wykonawcy"]

{"sheet":"DROGA","index":2,"n_rows":209,"n_cols":7,"rows_kept":209,"merged":[[0,0,0,6],[1,0,1,1],[1,2,1,6],[2,0,2,1],[2,2,2,6],[3,0,3,1],[3,2,3,6],[205,0,205,2],[205,3,205,6]]}
[{"$f":"DANE!B3","v":"Aktualizacja i optymalizacja dokumentacji projektowej zadania wraz z pełnieniem nadzoru autorskiego podczas realizacji Inwestycji tj.: ”Rozbudowa drogi wojewódzkiej nr 548 Stolno-Wąbrzeźno od km 0+005 do km 29+619 z wyłączeniem węzła autostradowego w m. Lisewo od km 14+144 do km 15+146” \nOdcinek nr 2 – od km 15+146 do km 29+619"}]
["Branża: ",null,"BRANŻA DROGOWA 22.07"]
["Obiekt:",null,"Roboty drogowe"]
["Kod CPV:",null,"45000000-9\nRoboty budowlane w zakresie wznoszenia kompletnych obiektów budowlanych lub ich części oraz roboty w zakresie inżynierii lądowej i wodnej "]
["Poz.","Podstawa wyceny","Wyszczególnienie elementu rozliczeniowego","Jedn.","Ilość jedn.","Cena jedn.","Wartość robót"]
[null,"D.01.00.00","ROBOTY PRZYGOTOWAWCZE","x","x","x"]
[null,"D.01.01.01","Wytyczenie trasy i punktów wysokościowych (zgodnie z planem sytuacyjnym)","x","x","x","x"]
[1,null,"- DW548, drogi publiczne","km",{"v":15.1,"d":"15.10"}]
[null,"D.01.02.01","Usunięcie drzew i krzewów","x","x","x"]
[{"$f":"A8+1","v":2},null,"- usunięcie drzew:","x","x","x","x"]
[{"$f":"A10+1","v":3},null,"- drzewa o średnicy do 15 cm","szt.",{"v":3,"d":"3.00"}]
[4,null,"- drzewa o średnicy 16 ÷ 25 cm ","szt.",{"v":17,"d":"17.00"}]
[5,null,"- drzewa o średnicy 26 ÷ 35 cm ","szt.",{"v":2,"d":"2.00"}]
[6,null,"- usunięcie karpiny","szt.",{"v":64,"d":"64.00"}]
[7,null,"- wywóz karpiny","szt.",{"v":136,"d":"136.00"}]
[8,null,"- usunięcie zakrzaczeń ","m2",{"v":4300,"d":"4300.00"}]
[null,"D.01.02.02","Zdjęcie humusu","x","x","x","x"]
[{"$f":"A16+1","v":9},null,"- usuniecie warstwy ziemi urodzajnej/humusu","m2",{"v":87220,"d":"87220.00"}]
[null,"D.01.02.04","Rozebranie elementów dróg, ogrodzeń, obiektów kubaturowych","x","x","x"]
[{"$f":"A18+1","v":10},null,"- rozebranie podbudowy z kruszywa łamanego gr. do 55cm","m2",{"v":50725,"d":"50725.00"}]
[11,null,"- rozebranie warstwy MCE gr.17cm do ponownego wbudowania","m2",{"v":20951,"d":"20951.00"}]
[12,null,"- rozebranie warstwy kruszywa gr. 20cm","m2",{"v":2300,"d":"2300.00"}]
[13,null,"- rozebranie warstwy ulepszonego podłoża z gruntu stab.ziarnistym dodatkiem hydrofobowym gr.30cm do ponownego wbudowania","m2",{"v":20951,"d":"20951.00"}]
[{"$f":"A23+1","v":14},null,"- rozebranie nawierzchni z kostki betonowej wraz z podbudową z kruszywa łamanego","m2",{"v":3313.7,"d":"3313.70"}]
[15,null,"- rozebranie nawierzchni z płyt betonowych chodnikowych","m2",{"v":527,"d":"527.00"}]
[16,null,"- rozebranie krawężników betonowych wraz z ławą betonową","mb",{"v":1680.7,"d":"1680.70"}]
[17,null,"- rozebranie obrzeży chodnikowych wraz z ławą betonową","mb",{"v":1500.7,"d":"1500.70"}]
[18,null,"- rozebranie nawierzchni z płyt drogowych, żelbetowych","m2",{"v":146,"d":"146.00"}]
[19,null,"- rozebranie chodników z betonu asfaltowego gr. 4 cm","m2",{"v":229,"d":"229.00"}]
[20,null,"- rozebranie nawierzchni z trylinki","m2",{"v":357,"d":"357.00"}]
[21,null,"- rozebranie nawierzchni z płyt kamiennych","m2",{"v":26.4,"d":"26.40"}]
[22,null,"- rozebranie wiat przystankowych, murowanych","kpl",{"v":2,"d":"2.00"}]
[23,null,"- rozebranie wiaty przystankowej stalowej","kpl",{"v":2,"d":"2.00"}]
[24,null,"- demontaż tarcz znakow drogowych","szt",{"v":185,"d":"185.00"}]
[25,null,"- demontaż konstrukcji pod tablice drogowe","szt",{"v":1,"d":"1.00"}]
[26,null,"- demontaż słupków znakow drogowych","szt",{"v":173,"d":"173.00"}]
[27,null,"- demontaż słupków hektometrowych","szt",{"v":48,"d":"48.00"}]
[28,null,"- rozebranie ogrodzeń","mb",{"v":570,"d":"570.00"}]
[29,null,"- rozebranie wykonanych krawężników betonowych wraz z ławą betonową do ponownego wbudowania do 50%","mb",{"v":2707,"d":"2707.00"}]
[30,null,"- rozebranie wykonanych obrzeży betonowych wraz z ławą betonową do ponownego wbudowania do 50%","mb",{"v":12487,"d":"12487.00"}]
[31,null,"- rozebranie wykonanej nawierzchni z kostki betonowej wraz z podbudową do ponownego wbudowania do 50%","m2",{"v":682,"d":"682.00"}]
[32,null,"- rozebranie wykonanej nawierzchni z betonu asfaltowego wraz z podbudową ","m2",{"v":2036,"d":"2036.00"}]
[33,null,"- rozebranie wykonanych ścieków betonowych wraz z ławą betonową do ponownego wbudowania do 50%","mb",{"v":102,"d":"102.00"}]
[34,null,"- rozebranie wykonanych rowów krytych do ponownego wbudowania do 50%","mb",{"v":1145,"d":"1145.00"}]
[35,null,"- rozebranie zjazdów z nawierzchni kruszywa","m2",{"v":125,"d":"125.00"}]
[36,null,"- przestawienie kapliczki","kpl",{"v":1,"d":"1.00"}]
[null,"D.02.00.00","ROBOTY ZIEMNE","x","x","x"]
[null,"D.02.01.01","Wykonanie wykopów w gruntach kat. I-V. Wykonanie nasypów","x","x","x","x"]
[{"$f":"A46+1","v":37},null,"- wykopy","m3",{"v":189887,"d":"189887.00"}]
[38,null,"- nasypy","m3",{"v":42366,"d":"42366.00"}]
[null,"D.02.03.02","WZMOCNIENIE  GEOSYNTETYKIEM PODŁOŻA I KONSTRUKCJI NASYPU","x","x","x","x"]
[{"$f":"A50+1","v":39},null,"- wykonanie wzmocnienia podłoża i konstrukcji nasypów geosyntetykiem","m2",{"v":3200,"d":"3200.00"}]
[null,"D.03.00.00","ODWODNIENIE KORYTA DROGOWEGO","x","x","x"]
[null,"D.03.05.01","Drenaż koryta drogowego","x","x","x","x"]
[{"$f":"A52+1","v":40},null,"- wykonanie drenażu rurami PCV d=150mm osłoniętych geowłókniną ciągłą z PP w obsypce z kruszywa 16/31,5mm wraz z armaturą","mb",{"v":654.5,"d":"654.50"}]
[null,"D.04.00.00","PODBUDOWY","x","x","x"]
[null,"D.04.02.01","Warstwy zabezpieczające. Warstwa odsączająca / mrozoochronna","x","x","x","x"]
[{"$f":"A55+1","v":41},null,"- wykonanie warstwy odsączającej z mieszanki niezwiązanej gr. 25cm, 0/31,5 (CBR≥40, SE≥35) - zatoki autobusowe, pierścienie ronda, powierzchnie przejezdne i miejsca postojowe","m2",2342.81]
[{"$f":"A58+1","v":42},null,"- wykonanie warstwy odsączającej z mieszanki niezwiązanej gr. 25cm, 0/31,5 (CBR≥40, SE≥35) - drogi boczne","m2",6538.46]
[null,"D.04.02.01a","Podłoże ulepszone z mieszanki niezwiązanej","x","x","x","x"]
[{"$f":"A59+1","v":43},null,"- warstwa grubości 20 cm, 0/31,5 (CBR≥40, SE≥35) - zjazdy publiczne","m2",101.23]
[{"$f":"A61+1","v":44},null,"- warstwa grubości 20 cm, 0/31,5 (CBR≥40, SE≥35) - zjazdy indywidualne","m2",{"v":14716.020000000002,"d":"14,716.02"}]
[45,null,"- warstwa grubości 20 cm, 0/31,5 (CBR≥40, SE≥35) - zjazdy do zbiorników","m2",{"v":473,"d":"473.00"}]
[46,null,"- warstwa grubości 10 cm, 0/31,5 (CBR≥40, SE≥35) - ciągi piesze","m2",{"v":7322.700000000002,"d":"7,322.70"}]
[47,null,"- warstwa grubości 10 cm, 0/31,5 (CBR≥40, SE≥35) - ciągi pieszo-rowerowe na terenie zabudowy","m2",{"v":8240.93,"d":"8,240.93"}]
[48,null,"- warstwa grubości 20 cm, 0/31,5 (CBR≥40, SE≥35) - ciągi pieszo-rowerowe na wysokości zjazdów","m2",{"v":3119.94,"d":"3,119.94"}]
[49,null,"- warstwa grubości 10 cm, 0/31,5 (CBR≥40, SE≥35) - ciągi pieszo-rowerowe poza terenem zabudowy","m2",{"v":29435.18,"d":"29,435.18"}]
[50,null,"- warstwa grubości 10 cm, 0/31,5 (CBR≥40, SE≥35) - wyspy dzielące","m2",523.22]
[null,"D.04.02.01b","Podłoże ulepszone z mieszanki związanej hydraulicznie","x","x","x","x"]
[{"$f":"A68+1","v":51},null,"- warstwa grubości 25 cm (C1,5/2)","m2",{"v":2342.81,"d":"2,342.81"}]
[{"$f":"A70+1","v":52},null,"- warstwa grubości 25 cm (C1,5/2) - drogi boczne","m2",{"v":6538.46,"d":"6,538.46"}]
[null,"D.04.02.01c","Wymiana lub wzmocnienie gruntu","x","x","x","x"]
[{"$f":"A71+1","v":53},null,"- wymiana gruntu na grunt z materiału żwirowo-piaskowego o uziarnieniu 0/12,5 lub wzmocnienie gruntu","m2",{"v":58765,"d":"58765.00"}]
[null,"D.04.03.01","Oczyszczenie i skropienie warstw konstrukcyjnych","x","x","x","x"]
[{"$f":"A73+1","v":54},null,"- warstw konstrukcyjnych niebitumicznych","m2",193124.39]
[55,null,"- warstw konstrukcyjnych bitumicznych","m2","x","x","x"]
[56,null,"- warstwa ścieralna","m2",{"v":165766,"d":"165766.00"}]
[57,null,"- warstwa wiążąca","m2",135406.95]
[58,null,"- podbudowa zasadnicza","m2",{"v":117048.30000000002,"d":"117048.30"}]
[null,"D.04.04.02","Podbudowa z mieszanki z kruszywa niezwiązanego","x","x","x","x"]
[{"$f":"A79+1","v":59},null,"- podbudowa zasadnicza z mieszanki niezwiązanej z kruszywa łamanego stabilizowanego mechanicznie 0/31,5,  (CBR≥60, SE≥40) gr. 20cm - zjazdy publiczne","m2",92.03]
[60,null,"- podbudowa zasadnicza z mieszanki niezwiązanej z kruszywa łamanego stabilizowanego mechanicznie 0/31,5,  (CBR≥60, SE≥40) gr. 20cm - zjazdy indywidualne","m2",{"v":3286.8,"d":"3286.80"}]
[61,null,"- podbudowa zasadnicza z mieszanki niezwiązanej z kruszywa łamanego stabilizowanego mechanicznie 0/31,5,  (CBR≥60, SE≥40) gr. 22cm - zjazdy indywidualne","m2",{"v":10091.400000000001,"d":"10091.40"}]
["61.1.",null,"- podbudowa zasadnicza z mieszanki niezwiązanej z kruszywa łamanego stabilizowanego mechanicznie 0/31,5,  (CBR≥60, SE≥40) gr. 22cm - zjazdy publiczne","m2",39.44]
[{"$f":"A83+1","v":62},null,"- podbudowa z mieszanki niezwiązanej z kruszywa łamanego stabilizowanego mechanicznie 0/31,5,  (CBR≥60, SE≥40) gr. 20cm - zjazdy do zbiorników","m2",{"v":473.00000000000006,"d":"473.00"}]
[63,null,"- podbudowa z mieszanki niezwiązanej z kruszywa łamanego stabilizowanego mechanicznie 0/31,5,  (CBR≥40, SE≥35) gr. 15cm - ciągi piesze","m2",{"v":6974.000000000001,"d":"6974.00"}]
[64,null,"- podbudowa z mieszanki niezwiązanej z kruszywa łamanego stabilizowanego mechanicznie 0/31,5,  (CBR≥40, SE≥35) gr. 15cm - ciągi pieszo-rowerowe na terenie zabudowy","m2",{"v":7848.500000000001,"d":"7848.50"}]
[65,null,"- podbudowa z mieszanki niezwiązanej z kruszywa łamanego stabilizowanego mechanicznie 0/31,5,  (CBR≥60, SE≥40) gr. 20cm - ciągi pieszo-rowerowe na wysokości zjazdów","m2",{"v":1569.7000000000003,"d":"1569.70"}]
[{"$f":"A87+1","v":65},null,"- podbudowa z mieszanki niezwiązanej z kruszywa łamanego stabilizowanego mechanicznie 0/31,5,  (CBR≥60, SE≥40) gr. 26cm - ciągi pieszo-rowerowe na wysokości zjazdów","m2",1401.68]
[{"$f":"A89+1","v":66},null,"- podbudowa z mieszanki niezwiązanej z kruszywa łamanego stabilizowanego mechanicznie 0/31,5,  (CBR≥40, SE≥35) gr. 20cm - ciągi pieszo-rowerowe poza terenem zabudowy","m2",{"v":28033.500000000004,"d":"28033.50"}]
[67,null,"- podbudowa z mieszanki niezwiązanej z kruszywa łamanego stabilizowanego mechanicznie 0/31,5,  (CBR≥40, SE≥35) gr. 15cm - wyspy dzielące","m2",{"v":498.30000000000007,"d":"498.30"}]
[68,null,"- podbudowa z mieszanki niezwiązanej z kruszywa łamanego stabilizowanego mechanicznie 0/31,5,  (CBR≥40, SE≥35) gr. 25cm - zatoki autobusowe, powierzchnie przejezdne, pierścienie rond i miejsca postojowe","m2",4685.63]
[69,null,"- podbudowa z mieszanki niezwiązanej z kruszywa łamanego stabilizowanego mechanicznie 0/31,5,  (CBR≥60, SE≥40) gr. 20cm - drogi boczne","m2",{"v":12454.2,"d":"12454.20"}]
[null,"D.04.04.02a.","Podbudowa z mieszanki mineralno-cementowo-emulsyjnej","x","x","x","x"]
[{"$f":"A93+1","v":70},null,"- warstwa grubości 17 cm","m2",{"v":94684.70000000001,"d":"94684.70"}]
[{"$f":"A95+1","v":71},null,"- warstwa grubości 17 cm z materiału z odzysku","m2",{"v":10475.5,"d":"10475.50"}]
[null,"D.04.06.01","Podbudowa z mieszanki związanej cementem C8/10 gr.25cm","x","x","x","x"]
[{"$f":"A96+1","v":72},null,"- w-wa podbudowygr. 25cm - zatoki autobusowe, pierścienie ronda, powierzchnie przejezdne i miejsca postojowe","m2",{"v":4462.5,"d":"4462.50"}]
[null,"D.04.07.01","Podbudowa bitumiczna. Podbudowa z betonu asfaltowego AC","x","x","x","x"]
[{"$f":"A98+1","v":73},null,"- w-wa podbudowy zasadniczej AC16P 50/70, gr. 8 cm drogi boczne KR2","m2",{"v":11888.1,"d":"11888.10"}]
[null,"D.04.12.01","Warstwa ulepszonego podłoża","x","x","x","x"]
[{"$f":"A100+1","v":74},null,"- warstwa ulepszonego podłoża z gruntu stab.ziarnistym dodatkiem hydrofobowym gr.30cm z doziarnieniem i osuszeniem","m2",{"v":104153.17000000003,"d":"104153.17"}]
[{"$f":"A102+1","v":75},null,"- warstwa ulepszonego podłoża z gruntu stab.ziarnistym dodatkiem hydrofobowym gr.30cm z materiału z odzysku","m2",{"v":11523.050000000001,"d":"11523.05"}]
[null,"D.05.00.00","NAWIERZCHNIE","x","x","x"]
[{"$f":"A103+1","v":76},"D.05.02.01","Warstwa wiążąca z betonu asfaltowego AC 16W","x","x","x","x"]
[{"$f":"A105+1","v":77},null,"- warstwa wiążąca AC 16W PMB 45/80-65 grubości 8 cm DW 548","m2",125774.25]
[{"$f":"A106+1","v":78},null,"- warstwa wiążąca AC 16W grubości 5 cm zjazdy","m2",{"v":9632.7,"d":"9632.70"}]
[null,"D.05.03.01","Nawierzchnia z betonu cementowego dyblowana i kotwiona gr.20cm","x","x","x","x"]
[{"$f":"A107+1","v":79},null,"- nawierzchnia zatok autobusowych","m2",{"v":2265,"d":"2265.00"}]
[{"$f":"A109+1","v":80},null,"- nawierzchnia miejsc postojowych","m2",{"v":950,"d":"950.00"}]
[{"$f":"A110+1","v":81},null,"- nawierzchnia powierzchni przejezdnych w rejonie skrzyżowań","m2",{"v":394,"d":"394.00"}]
[82,null,"- nawierzchnia pierścienia ronda","m2",{"v":641,"d":"641.00"}]
[null,"D.05.03.03.","Nawierzchnia z płyt betonowych","x","x","x","x"]
[{"$f":"A112+1","v":83},null,"- nawierzchnia z płyt betonowych typu IOMB 12x75x100cm a w-wie stabilizacji RM 1,5-2,5MPa wypełnioną mieszanką niezwiązaną 0/8","m2",{"v":430,"d":"430.00"}]
[null,"D.05.03.05a","Nawierzchnia z betonu asfaltowego AC 11S","x","x","x","x"]
[{"$f":"A114+1","v":84},null,"- ciągi pieszo-rowerowe poza terenem zabudowy, grubośc warstwy 5 cm","m2",{"v":25485,"d":"25485.00"}]
[{"$f":"A116+1","v":85},null,"- warstwa ścieralna z BA gr. 4 cm drogi boczne KR2","m2",{"v":11322,"d":"11322.00"}]
[{"$f":"A117+1","v":86},null,"- warstwa ścieralna z BA gr. 4 cm zjazdy","m2",{"v":9174,"d":"9174.00"}]
[null,"D.05.03.11","Frezowanie nawierzchni asfaltowej na zimno","x","x","x","x"]
[{"$f":"A118+1","v":87},null,"- frezowanie nawierzchni asfaltowej na zimno gr.średnio 5cm","m2",{"v":33708,"d":"33708.00"}]
[{"$f":"A120+1","v":88},null,"- frezowanie nawierzchni asfaltowej na zimno gr.średnio 10cm","m2",{"v":34818,"d":"34818.00"}]
[{"$f":"A121+1","v":89},null,"- frezowanie nawierzchni asfaltowej na zimno gr.średnio 25cm","m2",{"v":44691,"d":"44691.00"}]
[null,"D.05.03.13a.","Warstwa ścieralna z mieszanki mineralno-asfaltowej SMA","x","x","x","x"]
[{"$f":"A122+1","v":90},null,"- warstwa ścieralna SMA 8 PMB 45/80-65 gr. 4 cm DW 548 KR4","m2",{"v":119785,"d":"119785.00"}]
[null,"D.05.03.23","Nawierzchnia z betonowej kostki brukowej ","x","x","x","x"]
[{"$f":"A124+1","v":91},null,"- nawierzchnia z kostki betonowej gr. 8 cm, czerwonej, \n  układanej na w-wie stabilizacji RM 1,5-2,5MPa   gr. 3 cm - zjazdy indywidualne","m2",{"v":2988,"d":"2,988.00"}]
[{"$f":"A126+1","v":92},null,"- nawierzchnia z kostki betonowej gr. 8 cm, czerwonej, \n  układanej na w-wie stabilizacji RM 1,5-2,5MPa   gr. 3 cm - zjazdy publiczne","m2",119.52]
[{"$f":"A127+1","v":93},null,"- nawierzchnia z kostki betonowej bezfazowej gr. 8 cm, szarej, układanej  na podsypce z mieszanki niezwiązanej 0/4 gr. 3 cm - ciag pieszo-rowerowy","m2",{"v":7135,"d":"7,135.00"}]
[94,null,"- nawierzchnia z kostki betonowej gr. 8 cm, szarej, układanej  na podsypce z mieszanki niezwiązanej 0/4 gr. 3 cm - ciag pieszy","m2",{"v":6340,"d":"6,340.00"}]
[95,null,"- nawierzchnia z kostki betonowej gr. 8 cm,kolor, układanej  na podsypce z mieszanki niezwiązanej 0/4 gr. 3 cm - wyspy dzielące","m2",{"v":453,"d":"453.00"}]
[96,null,"- nawierzchnia z kostki betonowej gr. 8 cm, z wypustkami\n  (integracyjnej),  układanej na podsypce z mieszanki niezwiązanej 0/4 gr. 3 cm ","m2",{"v":144,"d":"144.00"}]
[97,null,"- nawierzchnia z kostki betonowej gr. 8 cm, szarej, \n  układanej na podsypce z mieszanki niezwiązanej 0/4 gr. 3 cm z materiału z odzysku","m2",{"v":341,"d":"341.00"}]
[98,null,"- nawierzchnia z kostki betonowej bezfazowejgr. 8 cm, szarej,   układanej na podsypce z mieszanki niezwiązanej 0/4   gr. 3 cm z materiału z odzysku","m2",{"v":170.5,"d":"170.50"}]
[99,null,"- nawierzchnia z kostki betonowej gr. 8 cm, czerwonej, \n  układanej na w-wie stabilizacji RM 1,5-2,5MPa gr. 3 cm z materiału z odzysku","m2",{"v":341,"d":"341.00"}]
[null,"D.05.04.02","Połączenie konstrukcji nowej nawierzchni z istniejącą","x","x","x","x"]
[{"$f":"A134+1","v":100},null,"- powiązanie z drogami istniejącymi - siatka szklana","m2",{"v":504,"d":"504.00"}]
[null,"D.06.00.00","ROBOTY WYKOŃCZENIOWE","x","x","x"]
[null,"D.06.01.01","Umocnienie powierzchniowe skarp, rowów i ścieków","x","x","x","x"]
[{"$f":"A136+1","v":101},null,"- humusowanie wraz z obsianiem 10cm (skarpy)","m2",{"v":152699,"d":"152699.00"}]
[{"$f":"A139+1","v":102},null,"- humusowanie wraz z obsianiem gr. 10cm (tereny zielone w pasie drogowym)","m2",{"v":15100,"d":"15100.00"}]
[null,"D.06.02.01"," - umocnienie skarp płytami betonowymi","x","x","x","x"]
[{"$f":"A140+1","v":103},null,"- wzmocnienie powierzchniowe płytami ażurowymi","m2",{"v":1735,"d":"1735.00"}]
[null,"D.06.03.01","Pobocze gruntowe z mieszanki niezwiązanej z kruszywa łamanego stabilizowanego mechanicznie 0/31,5, grubość warstwy 15cm","x","x","x","x"]
[{"$f":"A142+1","v":104},null,"- DW548, drogi boczne","m2",{"v":51340,"d":"51340.00"}]
[105,null,"- zjazdy indywidualne, zjazdy publiczne","m2",{"v":1793,"d":"1793.00"}]
[null,"D.07.00.00","URZĄDZENIA BEZPIECZEŃSTWA RUCHU","x","x","x"]
[null,"D.07.01.01","Oznakowanie poziome","x","x","x","x"]
[{"$f":"A145+1","v":106},null,"Oznakowanie poziome jezdni grubowarstwową chemoutwardzalną akrylową do stosowania na zimno -linie segregacyjne i krawędziowe ciągłe malowane mechanicznie-grubość farby 4,0mm  z wytyczeniem","m2",3743.16]
[107,null,"Oznakowanie poziome grubowarstwową chemoutwardzalną akrylową do stosowania na zimno linie segregacyjne i krawędziowe przerywane malowane mechanicznie grubość 4,0mm  z wytyczeniem","m2",1374.39]
[108,null,"Oznakowanie poziome grubowarstwową chemoutwardzalną akrylową do stosowania na zimno  , linie na skrzyżowaniach i przejściach dla pieszych malowane ręcznie- 4,0mm  z wytyczeniem","m2",1138.73]
[109,null,"Oznakowanie poziome jezdni grubowarstwową chemoutwardzalną akrylową do stosowania na zimno strzałki i inne symbole malowane ręcznie - 4,0mm  z wytyczeniem","m2",{"v":883.3,"d":"883.30"}]
[110,null,"Oznakowanie  poziome jezdni cienkowarstwowe - oznakowanie przejazdu rowerowego - kolor czerwony","m2",{"v":189,"d":"189.00"}]
[111,null,"Oznakowanie  poziome parkingu - oznakowanie miejsca postojowego - kolor niebieski","m2",{"v":34.2,"d":"34.20"}]
[112,null,"Montaż punktowych elementów odblaskowych typu:PEO-1, PEO-5, PEO-7","szt",{"v":2048,"d":"2048.00"}]
[null,"D.07.02.01","Oznakowanie pionowe i konstrukcje wsporcze","x","x","x","x"]
[{"$f":"A154+1","v":113},null,"Montaż słupków stalowych ocynkowanych","szt.",{"v":456,"d":"456.00"}]
[114,null,"Montaż słupków stalowych ocynkowanych wg projektu pod co najmniej dwa znaki","szt.",{"v":98,"d":"98.00"}]
[115,null,"Montaż konstrukcjiwsporczych pod tablice drogowskazowe","szt.",{"v":23,"d":"23.00"}]
[116,null,"Pionowe znaki drogowe - znaki zakazu, nakazu, ostrzegawcze i informacyjne o pow. do 0.3 m2 ","szt.",{"v":553,"d":"553.00"}]
[117,null,"Pionowe znaki drogowe - znaki typu E tablice drogowskazowe o pow. pow 0.3 m3","szt.",{"v":34,"d":"34.00"}]
[118,null,"Słupek przeszkodowy U-5a w gniazdach RS","szt",{"v":10,"d":"10.00"}]
[119,null,"Słupek przeszkodowy C-9+U-5 w gniazdach RS","szt",{"v":12,"d":"12.00"}]
[120,null,"Tablice kierujące U-6a w gniazdach RS","szt",{"v":30,"d":"30.00"}]
[{"$f":"A163+1","v":121},"D.07.02.02","Słupki prowadzące i krawędziowe","szt",{"v":255,"d":"255.00"}]
[null,"D.07.05.01","Bariery ochronne stalowe ","x","x","x","x"]
[{"$f":"A164+1","v":122},null,"- N2/W3/A","mb",{"v":1125,"d":"1125.00"}]
[{"$f":"A166+1","v":123},null,"- N2/W3/A z poręczą","mb",{"v":118,"d":"118.00"}]
[null,"D.07.06.03","Urządzenia zabezpieczające ruch pieszych. Balustrady dla pieszych","x","x","x","x"]
[{"$f":"A167+1","v":124},null,"- U-12","mb",{"v":2011,"d":"2011.00"}]
["124.1",null,"- U-11","mb",{"v":4000,"d":"4000.00"}]
[null,"D.08.00.00","ELEMENTY ULIC","x","x","x"]
[null,"D.08.01.01","Krawężniki betonowe na ławie betonowej","x","x","x","x"]
[{"$f":"A169+1","v":125},null,"- krawężnik betonowy 20x30x100","mb",{"v":7700,"d":"7,700.00"}]
[126,null,"- krawężnik betonowy obniżony 4 cm 20x22x100","mb",{"v":1678,"d":"1,678.00"}]
[127,null,"- krawężnik betonowy obniżony 0 cm 12x25x100","mb",{"v":1230,"d":"1,230.00"}]
[128,null,"- krawężniki betonowe z materiału z odzysku","mb",{"v":1353.5,"d":"1,353.50"}]
[null,"D.08.01.02","Krawężniki kamienne na  ławie betonowej ","x","x","x","x"]
[{"$f":"A176+1","v":129},null,"- krawężnik kamienny obniżony 20x22x100","mb",{"v":499,"d":"499.00"}]
[null,"D.08.02.01","Betonowe obrzeża chodnikowe na ławie betonowej","x","x","x","x"]
[{"$f":"A178+1","v":130},null,"- betonowe obrzeża chodnikowe 8x30x100 cm na  ławie betonowej","mb",{"v":23590,"d":"23590.00"}]
[{"$f":"A180+1","v":131},null,"- betonowe obrzeża chodnikowe z materiału z odzysku","mb",{"v":6243.5,"d":"6243.50"}]
[null,"D.08.03.01","Palisada betonowa","x","x","x","x"]
[{"$f":"A181+1","v":132},null,"- betonowa palisada 18x18x120cm","mb",{"v":56,"d":"56.00"}]
[null,"D.08.05.01","Ścieki korytkowe z prefabrykowanych elementów betonowych","x","x","x","x"]
[{"$f":"A183+1","v":133},null,"- ściek muldowy 50x60x15","mb",{"v":2089,"d":"2089.00"}]
[{"$f":"A185+1","v":134},null,"- ściek muldowy 50x60x15 z materiału z odzysku","mb",{"v":50,"d":"50.00"}]
[{"$f":"A186+1","v":135},null,"- ściek korytkowy kolejowy 60x70x75","mb",{"v":181,"d":"181.00"}]
[{"$f":"A187+1","v":136},"D.08.05.02","Ścieki skarpowe z prefabrykowanych elementów betonowych","mb",{"v":56,"d":"56.00"}]
[{"$f":"A188+1","v":137},"D.08.05.03.","Ścieki z brukowej kostki betonowej","mb",{"v":1621,"d":"1,621.00"}]
[null,"D.09.00.00","ZIELEŃ DROGOWA","x","x","x"]
[null,"D.09.01.01","Nasadzenia","x","x","x","x"]
[{"$f":"A189+1","v":138},null,"- klon","szt.",{"v":30,"d":"30.00"}]
[{"$f":"A192+1","v":139},null,"- jesion","szt.",{"v":182,"d":"182.00"}]
[140,null,"- grab","szt.",{"v":959,"d":"959.00"}]
[141,null,"- lipa","szt.",{"v":820,"d":"820.00"}]
[142,null,"- dąb","szt.",{"v":4,"d":"4.00"}]
[143,null,"- kasztanowiec","szt.",{"v":5,"d":"5.00"}]
[144,null,"- buk","szt.",{"v":3,"d":"3.00"}]
[null,"D.10.00.00","INNE ROBOTY","x","x","x"]
[null,"D.10.01.01","Ogrodzenia","x","x","x","x"]
[{"$f":"A198+1","v":145},null,"- ogrodzenia tymczasowe posesji z siatki leśnej","mb",{"v":3713,"d":"3,713.00"}]
[{"$f":"A201+1","v":146},null,"- regulacja wysokościowa bram wjazdowych na posesje","kpl",{"v":41,"d":"41.00"}]
[{"$f":"A202+1","v":147},null,"- odgrodzenie zbiorników","mb",{"v":166,"d":"166.00"}]
[148,"D.10.01.01","- Schody","kpl.",{"v":1,"d":"1.00"}]
[149,"D.10.08.01","- Inwentaryzacja geodezyjna powykonawcza","kpl.",{"v":1,"d":"1.00"}]
[{"$f":"C3","v":"Roboty drogowe"}]
[]
[null,"________________",null,"______________"]
[null,"miejscowość, data",null,"podpis Wykonawcy"]

{"sheet":"Roboty inżynieryjne","index":3,"n_rows":106,"n_cols":7,"rows_kept":106,"merged":[[0,0,0,6],[1,0,1,6],[2,0,3,0],[2,1,3,1],[2,2,3,2],[2,3,2,4],[2,5,3,5],[2,6,3,6],[4,0,4,6],[26,0,26,6],[44,0,44,6],[66,0,66,6],[102,1,102,5]]}
[{"$f":"[1]DANE!B3","v":"Aktualizacja i optymalizacja dokumentacji projektowej zadania wraz z pełnieniem nadzoru autorskiego podczas realizacji Inwestycji tj.: ”Rozbudowa drogi wojewódzkiej nr 548 Stolno-Wąbrzeźno od km 0+005 do km 29+619 z wyłączeniem węzła autostradowego w m. Lisewo od km 14+144 do km 15+146” \nOdcinek nr 2 – od km 15+146 do km 29+619"}]
["ROBOTY INŻYNIERYJNE 22.07"]
["L.p.","Numer \nSTWiORB","Wyszczególnienie elementu rozliczeniowego","Jednostka",null,"Cena jednostkowa","Wartość robót"]
[{"$nulls":3},"Nazwa","Ilość"]
["PRZEPUST KM 17+558,30"]
[null,"M.01.00.00.","Roboty przygotowawcze","x","x","x","x"]
[null,"M.01.01.00.","Obsługa geodezyjna budowy","x","x","x","x"]
[1,"M.01.01.01.","Wytyczenie drogowego obiektu inżynierskiego","kpl",{"v":1,"d":"1.00"}]
[null,"M.11.00.00.","Fundamentowanie","x","x","x","x"]
[null,"M.11.01.00.","Roboty ziemne","x","x","x","x"]
[{"$f":"A8+1","v":2},"M.11.01.03.","Wykopy pod fundamenty w gruncie spoistym z czasowym zabezpieczeniem","m3",{"v":1388.46,"d":"1,388.46"}]
[null,"M.11.01.05.","Zasypanie wykopów fundamentowych oraz przestrzeni wokół przepustów wraz z zagęszczeniem","x","x","x","x"]
[{"$f":"A11+1","v":3},null,"- fundament kruszywowy","m3",71.34]
[{"$f":"A13+1","v":4},null," - geotkanina polipropylenowa","m2",277.24]
[{"$f":"A14+1","v":5},null,"- zasypka inżynierska przepustu","m3",374.05]
[{"$f":"A15+1","v":6},null,"- zasypanie wykopu wraz z zagęszczeniem","m3",812.06]
[null,"M.20.00.00.","Inne roboty mostowe","x","x","x","x"]
[null,"M.20.01.03.","Umocnienie stożków i skarp","x","x","x","x"]
[{"$f":"A16+1","v":7},null,"- umocnienie brukiem kamiennym na zaprawie cementowo piaskowej","m2",{"v":30.800000000000004,"d":"30.80"}]
[{"$f":"A19+1","v":8},"M.20.01.10.","Umocnienie dna i skarp cieku","m2",{"v":176,"d":"176.00"}]
[null,"M.20.01.12.","Wygrodzenia dla płazów","x","x","x","x"]
[{"$f":"A20+1","v":9},null,"- kładka dla zwierząt","szt.",{"v":3,"d":"3.00"}]
[null,"M.20.01.15","Przepusty z blachy falistej","x","x","x","x"]
[{"$f":"A22+1","v":10},null,"- rura stalowa d=2100 mm","m",32.18]
[{"$f":"A24+1","v":11},null," - stalowa półka dla zwierząt szer. 0,5 m","m",64.36]
[{"$f":"A25+1","v":12},null," - element złazowy półki dla zwierząt szer. 0,5 m","m",{"v":4,"d":"4.00"}]
["PRZEPUST KM 19+543,00"]
[null,"M.01.00.00.","Roboty przygotowawcze","x","x","x","x"]
[null,"M.01.01.00.","Obsługa geodezyjna budowy","x","x","x","x"]
[{"$f":"A26+1","v":13},"M.01.01.01.","Wytyczenie drogowego obiektu inżynierskiego","kpl",{"v":1,"d":"1.00"}]
[null,"M.11.00.00.","Fundamentowanie","x","x","x","x"]
[null,"M.11.01.00.","Roboty ziemne","x","x","x","x"]
[{"$f":"A30+1","v":14},"M.11.01.03.","Wykopy pod fundamenty w gruncie spoistym z czasowym zabezpieczeniem","m3",513.05]
[null,"M.11.01.05.","Zasypanie wykopów fundamentowych oraz przestrzeni wokół przepustów wraz z zagęszczeniem","x","x","x","x"]
[{"$f":"A33+1","v":15},null,"- fundament kruszywowy","m3",43.23]
[{"$f":"A35+1","v":16},null," - geotkanina polipropylenowa","m2",169.31]
[{"$f":"A36+1","v":17},null,"- zasypka inżynierska przepustu","m3",{"v":228.2,"d":"228.20"}]
[{"$f":"A37+1","v":18},null,"- zasypanie wykopu wraz z zagęszczeniem","m3",85.39]
[null,"M.20.00.00.","Inne roboty mostowe","x","x","x","x"]
[null,"M.20.01.03.","Umocnienie stożków i skarp","x","x","x","x"]
[{"$f":"A38+1","v":19},null,"- umocnienie brukiem kamiennym na zaprawie cementowo piaskowej","m2",33.68]
[{"$f":"A41+1","v":20},"M.20.01.10.","Umocnienie dna i skarp cieku","m2",{"v":286,"d":"286.00"}]
[null,"M.20.01.15.","Przepusty z blachy falistej","x","x","x","x"]
[{"$f":"A42+1","v":21},null,"- rura stalowa d=1700 mm","m",22.51]
["PRZEPUST KM 26+735,50"]
[null,"M.01.00.00.","Roboty przygotowawcze","x","x","x","x"]
[null,"M.01.01.00.","Obsługa geodezyjna budowy","x","x","x","x"]
[{"$f":"A44+1","v":22},"M.01.01.01.","Wytyczenie drogowego obiektu inżynierskiego","kpl",{"v":1,"d":"1.00"}]
[null,"M.11.00.00.","Fundamentowanie","x","x","x","x"]
[null,"M.11.01.00.","Roboty ziemne","x","x","x","x"]
[{"$f":"A48+1","v":23},"M.11.01.03.","Wykopy pod fundamenty w gruncie spoistym z czasowym zabezpieczeniem","m3",{"v":1598.27,"d":"1,598.27"}]
[null,"M.11.01.05.","Zasypanie wykopów fundamentowych oraz przestrzeni wokół przepustów wraz z zagęszczeniem","x","x","x","x"]
[{"$f":"A51+1","v":24},null,"- fundament kruszywowy","m3",50.56]
[{"$f":"A53+1","v":25},null," - geotkanina polipropylenowa","m2",261.68]
[{"$f":"A54+1","v":26},null,"- zasypka inżynierska przepustu","m3",343.75]
[{"$f":"A55+1","v":27},null,"- zasypanie wykopu wraz z zagęszczeniem","m3",662.22]
[null,"M.20.00.00.","Inne roboty mostowe","x","x","x","x"]
[null,"M.20.01.03.","Umocnienie stożków i skarp","x","x","x","x"]
[{"$f":"A56+1","v":28},null,"- umocnienie brukiem kamiennym na zaprawie cementowo piaskowej","m2",26.58]
[{"$f":"A59+1","v":29},"M.20.01.10.","Umocnienie dna i skarp cieku","m2",{"v":520.3000000000001,"d":"520.30"}]
[null,"M.20.01.12.","Wygrodzenia dla płazów","x","x","x","x"]
[{"$f":"A60+1","v":30},null,"- kładka dla zwierząt","szt.",{"v":2,"d":"2.00"}]
[null,"M.20.01.15.","Przepusty z blachy falistej","x","x","x","x"]
[{"$f":"A62+1","v":31},null,"- rura stalowa d=2100 mm","m",31.47]
[{"$f":"A64+1","v":32},null," - sStalowa półka dla zwierząt szer. 0,5 m","m",62.94]
[{"$f":"A65+1","v":33},null," - element złazowy półki dla zwierząt szer. 0,5 m","m",{"v":4,"d":"4.00"}]
["Przepusty rurowe"]
[null,"M.01.00.00.","Roboty przygotowawcze","x","x","x","x"]
[null,"M.01.01.00.","Obsługa geodezyjna budowy","x","x","x","x"]
[{"$f":"A66+1","v":34},"M.01.01.01.","Wytyczenie drogowego obiektu inżynierskiego","kpl",{"v":216,"d":"216.00"}]
[null,"M.11.00.00.","Fundamentowanie","x","x","x","x"]
[null,"M.11.01.00.","Roboty ziemne","x","x","x","x"]
[{"$f":"A70+1","v":35},"M.11.01.03.","Wykopy pod fundamenty w gruncie spoistym z czasowym zabezpieczeniem","m3",{"v":23240.800000000003,"d":"23,240.80"}]
[null,"M.11.01.05.","Zasypanie wykopów fundamentowych oraz przestrzeni wokół przepustów wraz z zagęszczeniem","x","x","x","x"]
[{"$f":"A73+1","v":36},null,"- podbudowa z pospółki gr. 15 cm","m3",{"v":559.1999999999999,"d":"559.20"}]
[{"$f":"A75+1","v":37},null,"- zasypka żwirowa przepustu","m3",{"v":21367.5,"d":"21,367.50"}]
[null,"M.13.00.00.","Beton","x","x","x","x"]
[null,"M.13.01.00.","Beton konstrukcyjny","x","x","x","x"]
[{"$f":"A76+1","v":38},null,"- beton fundamentów przepustu C30/37","m3",{"v":123.20000000000002,"d":"123.20"}]
[null,"M.20.00.00.","Inne roboty mostowe","x","x","x","x"]
[null,"M.20.01.03.","Umocnienie stożków i skarp","x","x","x","x"]
[{"$f":"A79+1","v":39},null,"- umocnienie brukiem kamiennym","m2",{"v":4231.700000000001,"d":"4,231.70"}]
[null,"M.20.01.06","Przepusty z rur PEHD","x","x","x","x"]
[{"$f":"A82+1","v":40},null,"- przepusty z rur PEHD d=400mm","m",{"v":1637,"d":"1,637.00"}]
[{"$f":"A84+1","v":41},null,"- przepusty z rur PEHD d=500mm","m",{"v":19,"d":"19.00"}]
[{"$f":"A85+1","v":42},null,"- przepusty z rur PEHD d=600mm","m",{"v":256,"d":"256.00"}]
[43,null,"- przepusty z rur PEHD d=800mm","m",{"v":614,"d":"614.00"}]
[44,null,"- przepusty z rur PEHD d=1000mm","m",{"v":33,"d":"33.00"}]
[45,null,"- przepusty z rur PEHD d=1200mm","m",{"v":29,"d":"29.00"}]
[46,"M.20.01.10.","Umocnienie dna i skarp cieku","m2",{"v":6011.500000000001,"d":"6,011.50"}]
[null,null,"ROZBIÓRKA ISTNIEJĄCYCH PRZEPUSTÓW","x","x","x","x"]
[null,"M.21.00.00.","Roboty rozbiórkowe i remontowe","x","x","x","x"]
[null,"M.21.01.03.","Rozbiórka elementów betonowych, żelbetowych i ceglanych","x","x","x","x"]
[{"$f":"A90+1","v":47},null,"- rozbiórka przepustów z cegły","m3",{"v":124.7,"d":"124.70"}]
[{"$f":"A94+1","v":48},null,"- rozbiórka przepustów rurowych","m",{"v":136,"d":"136.00"}]
[{"$f":"A95+1","v":49},null,"- rozbiórka konstrukcji żelbetowych przepustów","m3",208.64]
[{"$f":"A96+1","v":50},null,"- rozbiórka konstrukcji kamiennych przepustów","m3",96.03]
[null,null,"Rozbiórka przepustów rurowych wykonywanych w ramach poprzedniego kontraktu","x","x","x","x"]
[{"$f":"A97+1","v":51},null,"- przepusty z rur PEHD d=500mm","m",{"v":795,"d":"795.00"}]
[{"$f":"A99+1","v":52},null,"- przepusty z rur PEHD d=600mm","m",{"v":173,"d":"173.00"}]
[{"$f":"A100+1","v":53},null,"- przepusty z rur PEHD d=800mm","m",{"v":300,"d":"300.00"}]
[54,null,"- przepusty z rur PEHD d=1000mm","m",{"v":25,"d":"25.00"}]
[null,"RAZEM ROBOTY INŻYNIERYJNE"]
[]
[null,"________________",null,"______________"]
[null,"miejscowość, data",null,"podpis Wykonawcy"]

{"sheet":"KD","index":4,"n_rows":43,"n_cols":7,"rows_kept":43,"merged":[[0,0,0,6],[1,0,1,1],[1,2,1,6],[2,0,2,1],[2,2,2,6],[3,0,3,1],[3,2,3,6],[38,1,38,5]]}
[{"$f":"DANE!B3","v":"Aktualizacja i optymalizacja dokumentacji projektowej zadania wraz z pełnieniem nadzoru autorskiego podczas realizacji Inwestycji tj.: ”Rozbudowa drogi wojewódzkiej nr 548 Stolno-Wąbrzeźno od km 0+005 do km 29+619 z wyłączeniem węzła autostradowego w m. Lisewo od km 14+144 do km 15+146” \nOdcinek nr 2 – od km 15+146 do km 29+619"}]
["Branża: ",null,"BRANŻA SANITARNA 22.07"]
["Obiekt:",null,"Kanalizacja Deszczowa"]
["Kod CPV:",null,"45000000-9\nRoboty budowlane w zakresie wznoszenia kompletnych obiektów budowlanych lub ich części oraz roboty w zakresie inżynierii lądowej i wodnej "]
["Poz.","Podstawa wyceny","Wyszczególnienie elementu rozliczeniowego","Jedn.","Ilość jedn.","Cena jedn.","Wartość robót"]
[null,"U.01.01.01","ODWODNIENIE KORPUSU DROGOWEGO","x","x","x","x"]
[1,"U.01.01.01","Budowa kanalizacji deszczowej","x","x","x","x"]
[2,"U.01.01.01","- ciąg główny kanalizacji","x","x","x","x"]
[3,"U.01.01.01","- wykonanie wykopów liniowych dla budowy \n  kanałów głównych","m3",{"v":544,"d":"544.00"}]
[4,"U.01.01.01","- pełne umocnienie pionowych ścian wykopów liniowych","m2",{"v":680,"d":"680.00"}]
[5,"U.01.01.01","- podsypka i obsypka piaskowa","m3",{"v":181,"d":"181.00"}]
[6,"U.01.01.01","- montaż kanałów z rur PCV d=315 SN8","m",{"v":174,"d":"174.00"}]
[null,"U.01.01.01","- montaż kanałów z rur VIPRO d=600mm","m",{"v":2022,"d":"2022.00"}]
[7,"U.01.01.01","- montaż kanałów z rur VIPRO d=800mm","m",{"v":15,"d":"15.00"}]
[8,"U.01.01.01","- zasypanie wykopów liniowych z zagęszczeniem","m3",{"v":363,"d":"363.00"}]
[9,"U.01.01.01","- zabudowa studni z kregów betonowych d=1200mm","kpl",{"v":21,"d":"21.00"}]
[10,"U.01.01.01","- zabudowa studni wpadowych z kregów\n   betonowych d=1400mm","kpl",{"v":1,"d":"1.00"}]
[11,"U.01.01.01","Studzienka rozprężna 1200","szt.",{"v":1,"d":"1.00"}]
[12,"U.01.01.01","- montaż rurociagu tłocznego z rur PEHD SDR11 PN16  Dz160","mb",{"v":21,"d":"21.00"}]
[13,"U.01.01.01","- ułożenie rur osłonowych PE100 SDR17 Dz315","mb",{"v":12,"d":"12.00"}]
[14,"U.01.01.01","Wylot do rowy DN315","szt.",{"v":1,"d":"1.00"}]
[15,"U.01.01.01","- przykanaliki i wpusty","x","x","x","x"]
[16,"U.01.01.01","- wykonanie wykopów liniowych dla budowy\n   przykanalików","m3",{"v":1088.4,"d":"1088.40"}]
[17,"U.01.01.01","- pełne umocnienie pionowych ścian wykopów liniowych","m2",{"v":1360.5,"d":"1360.50"}]
[18,"U.01.01.01","- podsypka piaskowa, grubości 10 cm","m3",72.56]
[19,"U.01.01.01","- montaż kanałów z rur PCV d=200mm SN8","m",{"v":907,"d":"907.00"}]
[20,"U.01.01.01","- montaż kanałów z rur PCV d=200mm SN12","m",{"v":574,"d":"574.00"}]
[21,"U.01.01.01","- obsypka piaskowa kanałów  - 30cm nad wierzch rur","m3",333.78]
[22,"U.01.01.01","- zasypanie wykopów liniowych z zagęszczeniem","m3",682.06]
[23,"U.01.01.01","- zabudowa wpustów z prefabrykowanych elementów \n  betonowych d=500mm","kpl",{"v":212,"d":"212.00"}]
[24,"U.01.01.01","demontarz istniejących wpustów DN500","kpl",{"v":25,"d":"25.00"}]
[25,"U.01.01.01","Trójnik siodłowy DN200","1st.",{"v":21,"d":"21.00"}]
[26,"U.01.01.01","Regulacja istniejących studzienek i wpustów","x","x","x","x"]
[27,"U.01.01.01","Regulacja istniejących włazów studzienek z wymianą pierścieni odciążających","szt.",{"v":53,"d":"53.00"}]
[28,"U.01.01.01","Regulacja (przebudowa) istniejących wpustów","szt.",{"v":71,"d":"71.00"}]
[29,"U.01.01.01","Montaż rury osłonowej dwudzielnej DN315","m",{"v":52,"d":"52.00"}]
[30,"U.01.01.01","Montaż rury osłonowej dwudzielnej DN400","m",213.75]
[31,"U.01.01.01","Wposażenie pompowni P-3 wraz z rozruchem","kpl",{"v":1,"d":"1.00"}]
[null,"RAZEM KANALIZACJA DESZCZOWA",{"$nulls":4},{"$f":"SUM(G6:G35)","v":{"v":0,"d":"0.00"}}]
[]
[]
[null,"________________",null,"______________"]
[null,"miejscowość, data",null,"podpis Wykonawcy"]

{"sheet":"KS","index":5,"n_rows":22,"n_cols":7,"rows_kept":22,"merged":[[0,0,0,6],[1,0,1,1],[1,2,1,6],[2,0,2,1],[2,2,2,6],[3,0,3,1],[3,2,3,6],[18,1,18,5]]}
[{"$f":"DANE!B3","v":"Aktualizacja i optymalizacja dokumentacji projektowej zadania wraz z pełnieniem nadzoru autorskiego podczas realizacji Inwestycji tj.: ”Rozbudowa drogi wojewódzkiej nr 548 Stolno-Wąbrzeźno od km 0+005 do km 29+619 z wyłączeniem węzła autostradowego w m. Lisewo od km 14+144 do km 15+146” \nOdcinek nr 2 – od km 15+146 do km 29+619"}]
["Branża: ",null,"BRANŻA SANITARNA 22.07"]
["Obiekt:",null,"Kanalizacja Sanitarna"]
["Kod CPV:",null,"45000000-9\nRoboty budowlane w zakresie wznoszenia kompletnych obiektów budowlanych lub ich części oraz roboty w zakresie inżynierii lądowej i wodnej "]
["Poz.","Podstawa wyceny","Wyszczególnienie elementu rozliczeniowego","Jedn.","Ilość jedn.","Cena jedn.","Wartość robót"]
[null,"U.01.01.02","Przebudowa KANALIZACJI SANITARNEJ","x","x","x","x"]
[1,"U.01.01.02","- wykopy liniowe z umocnieniem","m3",{"v":508.32000000000005,"d":"508.32"}]
[2,"U.01.01.02","- podsypka piaskowa pod rurociągami gr. 10 cm","m3",{"v":28.240000000000006,"d":"28.24"}]
[3,"U.01.01.02","- ułożenie rur osłonowych PE100 SDR17 Dz200","mb",{"v":6,"d":"6.00"}]
[4,"U.01.01.02","- montaż rurociagów z rur PEHD SDR11 PN16 Dz75","mb",{"v":21,"d":"21.00"}]
[5,"U.01.01.02","- montaż rurociagów z rur PEHD SDR11 PN16 Dz90","mb",{"v":332,"d":"332.00"}]
[6,"U.01.01.02","Studzienka rwizyjno odpowietrzająca DN1500","szt.",{"v":1,"d":"1.00"}]
[7,"U.01.01.02","- próba szczelności ","mb",{"v":353,"d":"353.00"}]
[8,"U.01.01.02","- płukanie rurociągu","mb",{"v":353,"d":"353.00"}]
[9,"U.01.01.02","- obsypka piaskowa rurociagów - 30cm nad wierzch rury","m3",{"v":112.96000000000002,"d":"112.96"}]
[10,"U.01.01.02","- zasypanie wykopów z zagęszczeniem","m3",392.54]
[11,"U.01.01.02","Regulacja istniejących włazów studzienek z wymianą pierścieni odciążających","szt.",{"v":10,"d":"10.00"}]
[12,"U.01.01.02","- demontaż istniejących sieci","mb",{"v":330,"d":"330.00"}]
[null,"RAZEM KANALIZACJA SANITARNA",{"$nulls":4},{"$f":"SUM(G7:G18)","v":{"v":0,"d":"0.00"}}]
[]
[null,"________________",null,"______________"]
[null,"miejscowość, data",null,"podpis Wykonawcy"]

{"sheet":"W","index":6,"n_rows":34,"n_cols":7,"rows_kept":34,"merged":[[0,0,0,6],[1,0,1,1],[1,2,1,6],[2,0,2,1],[2,2,2,6],[3,0,3,1],[3,2,3,6],[30,1,30,5]]}
[{"$f":"DANE!B3","v":"Aktualizacja i optymalizacja dokumentacji projektowej zadania wraz z pełnieniem nadzoru autorskiego podczas realizacji Inwestycji tj.: ”Rozbudowa drogi wojewódzkiej nr 548 Stolno-Wąbrzeźno od km 0+005 do km 29+619 z wyłączeniem węzła autostradowego w m. Lisewo od km 14+144 do km 15+146” \nOdcinek nr 2 – od km 15+146 do km 29+619"}]
["Branża: ",null,"BRANŻA SANITARNA 22.07"]
["Obiekt:",null,"Wodociąg"]
["Kod CPV:",null,"45000000-9\nRoboty budowlane w zakresie wznoszenia kompletnych obiektów budowlanych lub ich części oraz roboty w zakresie inżynierii lądowej i wodnej "]
["Poz.","Podstawa wyceny","Wyszczególnienie elementu rozliczeniowego","Jedn.","Ilość jedn.","Cena jedn.","Wartość robót"]
[null,"U.01.01.03","Przebudowa sieci wodociągowej","x","x","x","x"]
[1,"U.01.01.03","- wykopy liniowe dla budowy wodociągu z umocnieniem","m3",{"v":1478.02,"d":"1,478.02"}]
[2,"U.01.01.03","- podsypka piaskowa pod rurociągami gr. 10 cm","m3",82.11]
[3,"U.01.01.03","- ułożenie rur osłonowych PE100 SDR17 Dz90","mb",{"v":34,"d":"34.00"}]
[4,"U.01.01.03","- ułożenie rur osłonowych PE100 SDR17 Dz110","mb",{"v":139.1,"d":"139.10"}]
[5,"U.01.01.03","- ułożenie rur osłonowych PE100 SDR17 Dz160","mb",{"v":15,"d":"15.00"}]
[6,"U.01.01.03","- ułożenie rur osłonowych PE100 SDR17 Dz200","mb",{"v":35,"d":"35.00"}]
[7,"U.01.01.03","- ułożenie rur osłonowych PE100 SDR17 Dz225","mb",{"v":311.2,"d":"311.20"}]
[8,"U.01.01.03","- montaż rurociagów z rur PEHD SDR11 PN16 Dz32","mb",{"v":26.5,"d":"26.50"}]
[9,"U.01.01.03","- montaż rurociagów z rur PEHD SDR11 PN16 Dz40","mb",{"v":20,"d":"20.00"}]
[10,"U.01.01.03","- montaż rurociagów z rur PEHD SDR11 PN16 Dz50","mb",{"v":186,"d":"186.00"}]
[11,"U.01.01.03","- montaż rurociagów z rur PEHD SDR11 PN16 Dz75","mb",{"v":20,"d":"20.00"}]
[12,"U.01.01.03","- montaż rurociagów z rur PEHD SDR11 PN16 Dz90","mb",{"v":160.5,"d":"160.50"}]
[13,"U.01.01.03","- montaż rurociagów z rur PEHD SDR11 PN16  Dz110","mb",{"v":613.4,"d":"613.40"}]
[14,"U.01.01.03","- montaż zasuw żeliwnych, kołnierzowych Dn40\n   z obudowa teleskopową,  z skrzynką do zasuw","szt",{"v":4,"d":"4.00"}]
[15,"U.01.01.03","- montaż zasuw żeliwnych, kołnierzowych Dn80\n   z obudowa teleskopową,  z skrzynką do zasuw","szt",{"v":2,"d":"2.00"}]
[16,"U.01.01.03","- montaż zasuw żeliwnych, kołnierzowych Dn100 \n  z obudowa teleskopową, z skrzynką do zasuw","szt",{"v":18,"d":"18.00"}]
[17,"U.01.01.03","- montaż hydrantów nadziemnych, żeliwnych z zasuwą, kolanem stopowym i prostką dwukołn.   Dn80","szt",{"v":4,"d":"4.00"}]
[18,"U.01.01.03","- montaż hydrantów podziemnych, żeliwnych z zasuwą kolanem stopowym i prostką dwukołn.   Dn80","szt",{"v":2,"d":"2.00"}]
[19,"U.01.01.03","- próba szczelności sieci wodociagowej","mb",{"v":1026.4,"d":"1,026.40"}]
[20,"U.01.01.03","- płukanie i dezynfekcja wodociagu","mb",{"v":1026.4,"d":"1,026.40"}]
[21,"U.01.01.03","- obsypka piaskowa rurociagów - 30cm nad wierzch rury","m3",328.45]
[22,"U.01.01.03","- zasypanie wykopów z zagęszczeniem","m3",{"v":1141.36,"d":"1,141.36"}]
[23,"U.01.01.03","- demontaż istniejących sieci wodociągowych\n   wraz z armaturą","mb",{"v":1100,"d":"1,100.00"}]
[24,"U.01.01.03","Regulacja istniejących skrzynek armatury","szt",{"v":32,"d":"32.00"}]
[null,"RAZEM WODOCIĄG",{"$nulls":4},{"$f":"SUM(G7:G30)","v":{"v":0,"d":"0.00"}}]
[]
[null,"________________",null,"______________"]
[null,"miejscowość, data",null,"podpis Wykonawcy"]

{"sheet":"GAZ","index":7,"n_rows":24,"n_cols":7,"rows_kept":24,"merged":[[0,0,0,6],[1,0,1,1],[1,2,1,6],[2,0,2,1],[2,2,2,6],[3,0,3,1],[3,2,3,6],[17,1,17,5]]}
[{"$f":"DANE!B3","v":"Aktualizacja i optymalizacja dokumentacji projektowej zadania wraz z pełnieniem nadzoru autorskiego podczas realizacji Inwestycji tj.: ”Rozbudowa drogi wojewódzkiej nr 548 Stolno-Wąbrzeźno od km 0+005 do km 29+619 z wyłączeniem węzła autostradowego w m. Lisewo od km 14+144 do km 15+146” \nOdcinek nr 2 – od km 15+146 do km 29+619"}]
["Branża: ",null,"BRANŻA SANITARNA 22.07"]
["Obiekt:",null,"Gazociąg"]
["Kod CPV:",null,"45000000-9\nRoboty budowlane w zakresie wznoszenia kompletnych obiektów budowlanych lub ich części oraz roboty w zakresie inżynierii lądowej i wodnej "]
["Poz.","Podstawa wyceny","Wyszczególnienie elementu rozliczeniowego","Jedn.","Ilość jedn.","Cena jedn.","Wartość robót"]
[null,"U.01.01.04","Przebudowa sieci GAZOWEJ","x","x","x","x"]
[1,"U.01.01.04","- wykopy liniowe z umocnieniem","m3",181.06]
[2,"U.01.01.04","- podsypka piaskowa pod rurociągami gr. 10 cm","m3",13.93]
[3,"U.01.01.04","- ułożenie rur osłonowych PE100 SDR17 Dz315","mb",{"v":30,"d":"30.00"}]
[4,"U.01.01.04","- montaż rurociagów z rur PEHD SDR11 PN16  Dz180","mb",{"v":174.10000000000002,"d":"174.10"}]
[5,"U.01.01.04","- próba ciśnieniowa","mb",{"v":174.10000000000002,"d":"174.10"}]
[6,"U.01.01.04","-taśma ostrzegawcza GAZ","mb",{"v":174.10000000000002,"d":"174.10"}]
[7,"U.01.01.04","-przewód lokalizacyjny 2,5 mm2","mb",{"v":174.10000000000002,"d":"174.10"}]
[8,"U.01.01.04","- obsypka piaskowa rurociagów - 10cm nad wierzch rury","m3",41.78]
[9,"U.01.01.04","- zasypanie wykopów z zagęszczeniem","m3",137.89]
[10,"U.01.01.04","- demontaż istniejących sieci gazowej","mb",{"v":165,"d":"165.00"}]
[11,"U.01.01.04","Regulacja istniejących skrzynek armatury","szt",{"v":6,"d":"6.00"}]
[null,"RAZEM GAZOCIĄG",{"$nulls":4},{"$f":"SUM(G7:G17)","v":{"v":0,"d":"0.0"}}]
[]
[]
[]
[]
[null,"________________",null,"______________"]
[null,"miejscowość, data",null,"podpis Wykonawcy"]

{"sheet":"Teletechnika","index":8,"n_rows":45,"n_cols":7,"rows_kept":45,"merged":[[0,0,0,6],[1,0,1,1],[1,2,1,6],[2,0,2,1],[2,2,2,6],[3,0,3,1],[3,2,3,6],[5,2,5,4],[38,0,38,5]]}
[{"$f":"DANE!B3","v":"Aktualizacja i optymalizacja dokumentacji projektowej zadania wraz z pełnieniem nadzoru autorskiego podczas realizacji Inwestycji tj.: ”Rozbudowa drogi wojewódzkiej nr 548 Stolno-Wąbrzeźno od km 0+005 do km 29+619 z wyłączeniem węzła autostradowego w m. Lisewo od km 14+144 do km 15+146” \nOdcinek nr 2 – od km 15+146 do km 29+619"}]
["Branża: ",null,"BRANŻA TELETECHNICZNA 22.07"]
["Obiekt:",null,"Teletechnika"]
["Kod CPV:",null,"45000000-9\nRoboty budowlane w zakresie wznoszenia kompletnych obiektów budowlanych lub ich części oraz roboty w zakresie inżynierii lądowej i wodnej "]
["Poz.","Podstawa wyceny","Wyszczególnienie elementu rozliczeniowego","Jedn.","Ilość jedn.","Cena jedn.","Wartość robót"]
["*","T.01.01.01.","Przebudowa sieci telekomunikacyjnych"]
[null,null,"Sieć miejscowa","*","*","*","*"]
[1,null,"studnia kablowa SKR-2 kompletna (kolumny wspornikowe, wsporniki dwukablowe-metalowe) z ramą z kołnierzem betonowym typ ciężki, pokrywą typu ciężkiego ryglowaną","szt.",{"v":2,"d":"2.00"}]
[{"$f":"A8+1","v":2},null,"regulacja wysokościowa studni kablowych","szt.",{"v":4,"d":"4.00"}]
[{"$f":"A9+1","v":3},null,"kanalizacja kablowa 3-otworowa rurami HDPE Ø125/7,1","m",{"v":100,"d":"100.00"}]
[4,null,"rura ochronna (1x)HDPE Ø125/7,1","m",{"v":301,"d":"301.00"}]
[5,null,"rura ochronna (2x)HDPE Ø40/3,7 - rurociąg kablowy (wraz z kablem identyfikacyjnym)","m",{"v":1111,"d":"1,111.00"}]
[6,null,"rura ochronna dzielona (1x)HDPE Ø160/141","m",{"v":1802,"d":"1,802.00"}]
[7,null,"słup pojedynczy, uszczudlony","szt.",{"v":1,"d":"1.00"}]
[8,null,"słup bliźniaczy, uszczudlony","szt.",{"v":1,"d":"1.00"}]
[9,null,"słupek rozdzielczy HDPE 30p","szt.",{"v":1,"d":"1.00"}]
[10,null,"przełożenie kabli linii napowietrznej  wraz ze wszystkimi robotami towarzyszącymi i z kompletem osprzętu","m",{"v":30,"d":"30.00"}]
[11,null,"budowa kabla XzTKMXpw 10x2x0,6 ze złączami","m",{"v":56,"d":"56.00"}]
[12,null,"budowa kabla XzTKMXpw 5x4x0,6 ze złączami","m",{"v":1690,"d":"1,690.00"}]
[13,null,"budowa kabla XzTKMXpw 15x4x0,6 ze złączami","m",{"v":95,"d":"95.00"}]
[14,null,"budowa kabla XzTKMXpw 25x4x0,6 ze złączami","m",{"v":205,"d":"205.00"}]
[15,null,"budowa kabla XzTKMXpw 50x4x0,6 ze złączami","m",{"v":1332,"d":"1,332.00"}]
[16,null,"budowa kabla napowietrznego XzTKMXpwn 5x4x0,6 ze złączami","m",{"v":60,"d":"60.00"}]
[17,null,"rozbiórka studni kablowej","szt.",{"v":1,"d":"1.00"}]
[18,null,"rozbiórka słupa telekomunikacyjnego","szt.",{"v":2,"d":"2.00"}]
[19,null,"demontaż kabla","m",{"v":3400,"d":"3,400.00"}]
[20,null,"demontaż kabla napowietrznego","m",{"v":60,"d":"60.00"}]
[21,null,"pomiary w trakcie robót i pomontażowe na kablach o żyłach metalowych","kpl.",{"v":1,"d":"1.00"}]
[22,null," pozyskanie warunków technicznych i uzgodnień przebudów sieci telekomunikacyjnych z właścicielami sieci na własny koszt (tych które wymagają nowych uzgodnień),","kpl.",{"v":1,"d":"1.00"}]
[23,null,"pozyskania przez wykonawcę wywiadów branżowych pod kątem zweryfikowania czy nie powstały nowe sieci na własny koszt","kpl.",{"v":1,"d":"1.00"}]
[24,null,"nadzory właścicielskie","kpl.",{"v":1,"d":"1.00"}]
[25,null,"budowa kabla światłowodowego Z-XOTKtsd 24J","m",{"v":16000,"d":"16,000.00"}]
[26,null,"kanalizacja wtórna 2xHDPE ∅32/2,9 ","m",{"v":100,"d":"100.00"}]
[27,null,"zasobnik ZK-1","szt.",{"v":12,"d":"12.00"}]
[28,null,"osłona złączowa kompletna FOSC-400-B4-S24-1","szt.",{"v":7,"d":"7.00"}]
[29,null,"pomiary w trakcie robót i pomontażowe na kablach światłowodwych","kpl.",{"v":1,"d":"1.00"}]
[30,null,"przełożenie kabla światłowodowego kanałowego","m",{"v":150,"d":"150.00"}]
[31,null,"demontaż kabla światłowodowego","m",{"v":16000,"d":"16,000.00"}]
["WARTOŚĆ KOSZTORYSU NETTO:",{"$nulls":5},{"$f":"SUM(G8:G38)","v":{"v":0,"d":"0.00 zł"}}]
[]
[]
[]
[]
[null,"________________",null,"______________"]
[null,"miejscowość, data",null,"podpis Wykonawcy"]

{"sheet":"En","index":9,"n_rows":42,"n_cols":7,"rows_kept":42,"merged":[[0,0,0,6],[1,0,1,1],[1,2,1,6],[2,0,2,1],[2,2,2,6],[3,0,3,1],[3,2,3,6],[37,1,37,5]]}
[{"$f":"DANE!B3","v":"Aktualizacja i optymalizacja dokumentacji projektowej zadania wraz z pełnieniem nadzoru autorskiego podczas realizacji Inwestycji tj.: ”Rozbudowa drogi wojewódzkiej nr 548 Stolno-Wąbrzeźno od km 0+005 do km 29+619 z wyłączeniem węzła autostradowego w m. Lisewo od km 14+144 do km 15+146” \nOdcinek nr 2 – od km 15+146 do km 29+619"}]
["Branża: ",null,"BRANŻA ELEKTROENERGETYCZNA 22.07"]
["Obiekt:",null,"Przebudowa sieci elektroenergetycznych"]
["Kod CPV:",null,"45000000-9\nRoboty budowlane w zakresie wznoszenia kompletnych obiektów budowlanych lub ich części oraz roboty w zakresie inżynierii lądowej i wodnej "]
["Poz.","Podstawa wyceny","Wyszczególnienie elementu rozliczeniowego","Jedn.","Ilość jedn.","Cena jedn.","Wartość robót"]
[null,"U.01.03.01 U.01.03.02"," Przebudowa napowietrznych linii energetycznych nN Przebudowa i budowa kablowych linii energetycznych nN","x","x","x","x"]
["1.",null,"Zabudowa kompletnego stanowiska słupowego nN typu N3-12/10 (E) wraz z fundamentem oraz uzbrojeniem   zgodnie z dokumentacją projektową                                                                                                                                                                                                                                            ","kpl.",{"v":3,"d":"3.000"}]
["1.",null,"Zabudowa kompletnego stanowiska słupowego nN typu N3-12/12 (E) wraz z fundamentem oraz uzbrojeniem   zgodnie z dokumentacją projektową                                                                                                                                                                                                                                            ","kpl.",{"v":5,"d":"5.000"}]
["2.",null,"Zabudowa kompletnego stanowiska słupowego nN typu O-12/12 (E) wraz z fundamentem oraz uzbrojeniem    zgodnie z dokumentacją projektową                                                                                                                                                                                                                                           ","kpl.",{"v":1,"d":"1.000"}]
["4.",null,"Zabudowa kompletnego stanowiska słupowego nN typu P-12/4,3 (E) wraz z fundamentem oraz uzbrojeniem     zgodnie z dokumentacją projektową                                                                                                                                                                                                                                          ","kpl.",{"v":2,"d":"2.000"}]
["5.",null,"Zabudowa kompletnego stanowiska słupowego nN typu K-12/12 (E) wraz z fundamentem oraz uzbrojeniem    zgodnie z dokumentacją projektową                                                                                                                                                                                                                                           ","kpl.",{"v":2,"d":"2.000"}]
["6.",null,"Zabudowa kompletnego stanowiska słupowego nN typu RPK-12/10 (E) wraz z fundamentem oraz uzbrojeniem    zgodnie z dokumentacją projektową                                                                                                                                                                                                                                           ","kpl.",{"v":5,"d":"5.000"}]
["7.",null,"Zabudowa kompletnego stanowiska słupowego nN typu RNK-12/12 (E) wraz z fundamentem oraz uzbrojeniem  zgodnie z dokumentacją projektową                                                                                                                                                                                                                                             ","kpl.",{"v":3,"d":"3.000"}]
["7.",null,"Zabudowa kompletnego stanowiska słupowego nN typu RNK-12/10 (E) wraz z fundamentem oraz uzbrojeniem  zgodnie z dokumentacją projektową                                                                                                                                                                                                                                             ","kpl.",{"v":2,"d":"2.000"}]
["8.",null,"Zabudowa przewodu typu AsXSn 4x50  zgodnie z dokumentacją projektową                                                                                                                                                                                                                                               ","mb",{"v":593,"d":"593.000"}]
["9.",null,"Zabudowa przewodu typu AsXSn 4x25   zgodnie z dokumentacją projektową                                                                                                                                                                                                                                              ","mb",{"v":50,"d":"50.000"}]
["10.",null,"Zabudowa przewodu typu AsXSn 4x16  zgodnie z dokumentacją projektową                                                                                                                                                                                                                                               ","mb",{"v":95,"d":"95.000"}]
["11.",null,"Istniejące przewody 4xAL 50+25 do przewieszenia na nowe słupy   zgodnie z dokumentacją projektową                                                                                                                                                                                                                                                ","mb",{"v":110,"d":"110.000"}]
["12.",null,"Istniejące przewody AsXSn 4x70 do przewieszenia na nowe słupy   zgodnie z dokumentacją projektową                                                                                                                                                                                                                                             ","mb",{"v":65,"d":"65.000"}]
["13.",null,"Istniejące przewody AsXSn 4x25 do przewieszenia na nowe słupy   zgodnie z dokumentacją projektową                                                                                                                                                                                                                                             ","mb",{"v":148,"d":"148.000"}]
["14.",null,"Zabudowa kabla nN YAKXS 4x120  zgodnie z dokumentacją projektową","mb",{"v":120,"d":"120.000"}]
["15.",null,"Zabudowa kabla nN YAKXS 4x70  zgodnie z dokumentacją projektową","mb",{"v":140,"d":"140.000"}]
["16.",null,"Zabudowa kabla nN YAKXS 4x35  zgodnie z dokumentacją projektową","mb",{"v":70,"d":"70.000"}]
["17.",null,"Zabudowa mufy kablowej nN POLJ-01/25-70  zgodnie z dokumentacją projektową","kpl.",{"v":4,"d":"4.000"}]
["18.",null,"Zabudowa mufy kablowej nN POLJ-01/70-120  zgodnie z dokumentacją projektową","kpl.",{"v":2,"d":"2.000"}]
["19.",null,"Zabudowa ograniczników przepięć typu ASA-0,66/5kA ","kpl.",{"v":42,"d":"42.000"}]
["20.",null,"Zabudowa zejścia kablem ze słupa (rura UV fi 75, uchwyty, opaski, zaciski, termokurcze, itp.) zgodnie z dokumentacją proejktową","kpl.",{"v":8,"d":"8.000"}]
["21.",null,"Wykonanie przewiertu sterowanego rurą SRS-G 110","mb",{"v":94,"d":"94.000"}]
["22.",null,"Zabudowa rury ochronnej SRS 110 zgodnie z dokumentacją projektową ","mb",{"v":64,"d":"64.000"}]
["23.",null,"Wykonanie zabezpieczenia istniejących kabli nN rurą A120PS zgodnie z dokumentacja projektową","mb",{"v":230,"d":"230.000"}]
["24.",null,"Wykonanie zabezpieczenia istniejących kabli SN rurą A160PS zgodnie z dokumentacja projektową","mb",{"v":125,"d":"125.000"}]
["25.",null,"Zabudowa uziomu pogrążalnego stalowego ocynkowanego fi 20, l=2x15m (R<10Ω)","kpl.",{"v":12,"d":"12.000"}]
["26.",null,"Zabudowa uziomu pogrążalnego stalowego ocynkowanego fi 20, l=15m (R<30Ω)","kpl.",{"v":11,"d":"11.000"}]
["28.",null,"Demontaż słupów linii napowietrznej","kpl.",{"v":23,"d":"23.000"}]
["29.",null,"Demontaż linii napowietrznej nN","mb",{"v":1300,"d":"1,300"}]
["30.",null,"Demontaż opraw oświetlenia ulicznego","kpl.",40]
["31.",null,"Demontaż linii kablowej nN","mb",350]
[null,"RAZEM ENERGETYKA nN",{"$nulls":4},{"$f":"SUM(G7:G37)","v":{"v":0,"d":"0.00"}}]
[]
[]
[null,"________________",null,"______________"]
[null,"miejscowość, data",null,"podpis Wykonawcy"]

{"sheet":"Os","index":10,"n_rows":179,"n_cols":7,"rows_kept":179,"merged":[[0,0,0,6],[1,0,1,1],[1,2,1,6],[2,0,2,1],[2,2,2,6],[3,0,3,1],[3,2,3,6],[6,0,6,5],[26,1,26,5],[27,0,27,5],[50,1,50,5],[51,0,51,5],[74,1,74,5],[75,0,75,5],[101,1,101,5],[102,0,102,5],[125,1,125,5],[126,0,126,5],[149,1,149,5],[150,0,150,5],[175,1,175,5]]}
[{"$f":"DANE!B3","v":"Aktualizacja i optymalizacja dokumentacji projektowej zadania wraz z pełnieniem nadzoru autorskiego podczas realizacji Inwestycji tj.: ”Rozbudowa drogi wojewódzkiej nr 548 Stolno-Wąbrzeźno od km 0+005 do km 29+619 z wyłączeniem węzła autostradowego w m. Lisewo od km 14+144 do km 15+146” \nOdcinek nr 2 – od km 15+146 do km 29+619"}]
["Branża: ",null,"BRANŻA ELEKTROENERGETYCZNA 22.07"]
["Obiekt:",null,"Budowa Oświetlenia Drogowego"]
["Kod CPV:",null,"45000000-9\nRoboty budowlane w zakresie wznoszenia kompletnych obiektów budowlanych lub ich części oraz roboty w zakresie inżynierii lądowej i wodnej "]
["Poz.","Podstawa wyceny","Wyszczególnienie elementu rozliczeniowego","Jedn.","Ilość jedn.","Cena jedn.","Wartość robót"]
[null,"U.07.07.01","Budowa oswietlenia drogowego","x","x","x","x"]
["Budowa oświetlenia drogowego w m. Lisewo od km 15+002 do km 15+552"]
["1.",null,"- zabudowa szafy oświetlenia ulicznego SOU-3 zgodnie z dokumentacją projektową","kpl",1]
["2.",null,"- zabudowa słupów aluminiowych, anodowanych na kolor naturalnego aluminium o wysokości do oprawy h=10m i wysiegniku 1m o kącie 5 stopni wraz z fundamentem prefabrykowanym zgodnie z dokumentacją projektową","kpl",10]
["3.",null,"- zabudowa słupów aluminiowych, anodowanych na kolor naturalnego aluminium o wysokości do oprawy h=5,5m i wysiegniku 2,5m o kącie 5 stopni wraz z fundamentem prefabrykowanym zgodnie z dokumentacją projektową","kpl",16]
["4.",null,"- zabudowa opraw oświetleniowych LED 105W, 4000K z optyką DW  zgodnie z dokumentacją projektową","kpl",6]
["5.",null,"- zabudowa opraw oświetleniowych LED 79W, 4000K z optyką T2 zgodnie z dokumentacją projektową","kpl",16]
["6.",null,"- zabudowa opraw oświetleniowych LED 67W, 4000K z optyką T2 zgodnie z dokumentacją projektową","kpl",2]
["7.",null,"- zabudowa opraw oświetleniowych LED 55W, 4000K z optyką T2 zgodnie z dokumentacją projektową","kpl",2]
["8.",null,"- zabudowa kabla YAKXS 4x35 zgodnie z dokumentacja projektową","mb",{"v":1036,"d":"1,036.00"}]
["9.",null,"- zabudowa bednarki FeZn30x4 zgodnie z dokumentacja projektową","mb",{"v":1036,"d":"1,036.00"}]
["10.",null,"- wykonanie przewiertów/przecisków rurą np. typu  SRS-G 110 zgodnie z dokumentacja projektową ","mb",{"v":32,"d":"32.00"}]
["11.",null,"- zabudowa rur ochronncyh np. typu  SRS 110 zgodnie z dokumentacja projektową ","mb",{"v":62,"d":"62.00"}]
["12.",null,"- zabudowa rur ochronncyh np. typu DVK 110 zgodnie z dokumentacja projektową ","mb",{"v":60,"d":"60.00"}]
["13.",null,"- zabudowa złącza słupowego/tabliczki słupowej zgodnie z dokumentacja projektową ","kpl.",{"v":26,"d":"26.00"}]
["14.",null,"- zabudowa uziomu stalowego ocynkowanego pogrążalnego fi 20, l=2x12m (R<10Ω)  zgodnie z dokumentacja projektową ","kpl.",{"v":1,"d":"1.00"}]
["15.",null,"- zabudowa uziomu stalowego ocynkowanego pogrążalnego fi 20, l=12m (R<30Ω)  zgodnie z dokumentacja projektową ","kpl.",{"v":3,"d":"3.00"}]
["16.",null,"- zabudowa przewodu w słupie typu YDYżo 3x2,5  zgodnie z dokumentacja projektową ","mb",{"v":338,"d":"338.00"}]
["17.",null,"- wykonanie pomiarów elektrycznych powykonawczych ","kpl.",{"v":1,"d":"1.00"}]
["18.",null,"- wykonanie pomiarówfotometrycznych powykonawczych ","kpl.",{"v":1,"d":"1.00"}]
["19.",null,"- obsługa geodezyjna ","kpl.",{"v":1,"d":"1.00"}]
[null,"RAZEM ",{"$nulls":4},{"$f":"SUM(G8:G26)","v":{"v":0,"d":"0.00"}}]
["Budowa oświetlenia drogowego w m. Józefkowo od km 16+625 do km 17+025"]
["1.",null,"- zabudowa szafy oświetlenia ulicznego SOU-3 zgodnie z dokumentacją projektową","kpl",1]
["2.",null,"- zabudowa słupów aluminiowych, anodowanych na kolor naturalnego aluminium o wysokości do oprawy h=10m i wysiegniku 2,5m o kącie 5 stopni wraz z fundamentem prefabrykowanym zgodnie z dokumentacją projektową","kpl",10]
["3.",null,"- zabudowa słupów aluminiowych, anodowanych na kolor naturalnego aluminium o wysokości do oprawy h=10m i wysiegniku 1m o kącie 5 stopni wraz z fundamentem prefabrykowanym zgodnie z dokumentacją projektową","kpl",12]
["4.",null,"- zabudowa słupów aluminiowych, anodowanych na kolor naturalnego aluminium o wysokości do oprawy h=5,5m i wysiegniku 2,5m o kącie 5 stopni wraz z fundamentem prefabrykowanym zgodnie z dokumentacją projektową","kpl",4]
["5.",null,"- zabudowa słupów aluminiowych, anodowanych na kolor naturalnego aluminium o wysokości do oprawy h=5,5m i wysiegniku 1,5m o kącie 5 stopni wraz z fundamentem prefabrykowanym zgodnie z dokumentacją projektową","kpl",4]
["6.",null,"- zabudowa opraw oświetleniowych LED 105W, 4000K z optyką DW  zgodnie z dokumentacją projektową","kpl",8]
["7.",null,"- zabudowa opraw oświetleniowych LED 79W, 4000K z optyką T2 zgodnie z dokumentacją projektową","kpl",6]
["8.",null,"- zabudowa opraw oświetleniowych LED 67W, 4000K z optyką T2 zgodnie z dokumentacją projektową","kpl",4]
["9.",null,"- zabudowa opraw oświetleniowych LED 55W, 4000K z optyką T2 zgodnie z dokumentacją projektową","kpl",4]
["10.",null,"- zabudowa opraw oświetleniowych LED 86W, 6000K P asymetrycznych zgodnie z dokumentacją projektową","kpl",8]
["11.",null,"- zabudowa kabla YAKXS 4x35 zgodnie z dokumentacja projektową","mb",{"v":825,"d":"825.00"}]
["12.",null,"- zabudowa bednarki FeZn30x4 zgodnie z dokumentacja projektową","mb",{"v":825,"d":"825.00"}]
["13.",null,"- wykonanie przewiertów/przecisków rurą np. typu  SRS-G 110 zgodnie z dokumentacja projektową ","mb",{"v":136,"d":"136.00"}]
["14.",null,"- zabudowa rur ochronncyh np. typu  SRS 110 zgodnie z dokumentacja projektową ","mb",{"v":40,"d":"40.00"}]
["15.",null,"- zabudowa rur ochronncyh np. typu DVK 110 zgodnie z dokumentacja projektową ","mb",{"v":106,"d":"106.00"}]
["16.",null,"- zabudowa złącza słupowego/tabliczki słupowej zgodnie z dokumentacja projektową ","kpl.",{"v":30,"d":"30.00"}]
["17.",null,"- zabudowa uziomu stalowego ocynkowanego pogrążalnego fi 20, l=2x12m (R<10Ω)  zgodnie z dokumentacja projektową ","kpl.",{"v":1,"d":"1.00"}]
["18.",null,"- zabudowa uziomu stalowego ocynkowanego pogrążalnego fi 20, l=12m (R<30Ω)  zgodnie z dokumentacja projektową ","kpl.",{"v":4,"d":"4.00"}]
["19.",null,"- zabudowa przewodu w słupie typu YDYżo 3x2,5  zgodnie z dokumentacja projektową ","mb",{"v":390,"d":"390.00"}]
["20.",null,"- wykonanie pomiarów elektrycznych powykonawczych ","kpl.",{"v":1,"d":"1.00"}]
["21.",null,"- wykonanie pomiarówfotometrycznych powykonawczych ","kpl.",{"v":1,"d":"1.00"}]
["22.",null,"- obsługa geodezyjna ","kpl.",{"v":1,"d":"1.00"}]
[null,"RAZEM ",{"$nulls":4},{"$f":"SUM(G29:G50)","v":{"v":0,"d":"0.00"}}]
["Budowa oświetlenia drogowego w m. Płużnica od km 18+985 do km 20+257"]
["1.",null,"- zabudowa szafy oświetlenia ulicznego SOU-3 zgodnie z dokumentacją projektową","kpl",1]
["2.",null,"- zabudowa słupów aluminiowych, anodowanych na kolor naturalnego aluminium o wysokości do oprawy h=10m i wysiegniku 2,5m o kącie 5 stopni wraz z fundamentem prefabrykowanym zgodnie z dokumentacją projektową","kpl",19]
["3.",null,"- zabudowa słupów aluminiowych, anodowanych na kolor naturalnego aluminium o wysokości do oprawy h=10m i wysiegniku 1m o kącie 5 stopni wraz z fundamentem prefabrykowanym zgodnie z dokumentacją projektową","kpl",32]
["4.",null,"- zabudowa słupów aluminiowych, anodowanych na kolor naturalnego aluminium o wysokości do oprawy h=5,5m i wysiegniku 2,5m o kącie 5 stopni wraz z fundamentem prefabrykowanym zgodnie z dokumentacją projektową","kpl",6]
["5.",null,"- zabudowa słupów aluminiowych, anodowanych na kolor naturalnego aluminium o wysokości do oprawy h=5,5m i wysiegniku 1,5m o kącie 5 stopni wraz z fundamentem prefabrykowanym zgodnie z dokumentacją projektową","kpl",6]
["6.",null,"- zabudowa opraw oświetleniowych LED 105W, 4000K z optyką DW  zgodnie z dokumentacją projektową","kpl",8]
["7.",null,"- zabudowa opraw oświetleniowych LED 79W, 4000K z optyką T2 zgodnie z dokumentacją projektową","kpl",35]
["8.",null,"- zabudowa opraw oświetleniowych LED 67W, 4000K z optyką T2 zgodnie z dokumentacją projektową","kpl",4]
["9.",null,"- zabudowa opraw oświetleniowych LED 55W, 4000K z optyką T2 zgodnie z dokumentacją projektową","kpl",4]
["10.",null,"- zabudowa opraw oświetleniowych LED 86W, 6000K P asymetrycznych zgodnie z dokumentacją projektową","kpl",12]
["11.",null,"- zabudowa kabla YAKXS 4x35 zgodnie z dokumentacja projektową","mb",{"v":1882,"d":"1,882.00"}]
["12.",null,"- zabudowa bednarki FeZn30x4 zgodnie z dokumentacja projektową","mb",{"v":1882,"d":"1,882.00"}]
["13.",null,"- wykonanie przewiertów/przecisków rurą np. typu  SRS-G 110 zgodnie z dokumentacja projektową ","mb",{"v":132,"d":"132.00"}]
["14.",null,"- zabudowa rur ochronncyh np. typu  SRS 110 zgodnie z dokumentacja projektową ","mb",{"v":154,"d":"154.00"}]
["15.",null,"- zabudowa rur ochronncyh np. typu DVK 110 zgodnie z dokumentacja projektową ","mb",{"v":160,"d":"160.00"}]
["16.",null,"- zabudowa złącza słupowego/tabliczki słupowej zgodnie z dokumentacja projektową ","kpl.",{"v":63,"d":"63.00"}]
["17.",null,"- zabudowa uziomu stalowego ocynkowanego pogrążalnego fi 20, l=2x12m (R<10Ω)  zgodnie z dokumentacja projektową ","kpl.",{"v":1,"d":"1.00"}]
["18.",null,"- zabudowa uziomu stalowego ocynkowanego pogrążalnego fi 20, l=12m (R<30Ω)  zgodnie z dokumentacja projektową ","kpl.",{"v":7,"d":"7.00"}]
["19.",null,"- zabudowa przewodu w słupie typu YDYżo 3x2,5  zgodnie z dokumentacja projektową ","mb",{"v":819,"d":"819.00"}]
["20.",null,"- wykonanie pomiarów elektrycznych powykonawczych ","kpl.",{"v":1,"d":"1.00"}]
["21.",null,"- wykonanie pomiarów fotometrycznych powykonawczych ","kpl.",{"v":1,"d":"1.00"}]
["22.",null,"- obsługa geodezyjna ","kpl.",{"v":1,"d":"1.00"}]
[null,"RAZEM ",{"$nulls":4},{"$f":"SUM(G53:G74)","v":{"v":0,"d":"0.00"}}]
["Budowa oświetlenia drogowego w m. Czaple i m. Bartoszewice od km 20+257 do km 20+987"]
["1.",null,"- zabudowa szafy oświetlenia ulicznego SOU-3 zgodnie z dokumentacją projektową","kpl",1]
["2.",null,"- zabudowa słupów aluminiowych, anodowanych na kolor naturalnego aluminium o wysokości do oprawy h=10m i wysiegniku 2,5m o kącie 5 stopni wraz z fundamentem prefabrykowanym zgodnie z dokumentacją projektową","kpl",9]
["3.",null,"- zabudowa słupów aluminiowych, anodowanych na kolor naturalnego aluminium o wysokości do oprawy h=10m i wysiegniku 1m o kącie 5 stopni wraz z fundamentem prefabrykowanym zgodnie z dokumentacją projektową","kpl",22]
["4.",null,"- zabudowa słupów aluminiowych, anodowanych na kolor naturalnego aluminium o wysokości do oprawy h=5,5m i wysiegniku 2,5m o kącie 5 stopni wraz z fundamentem prefabrykowanym zgodnie z dokumentacją projektową","kpl",4]
["5.",null,"- zabudowa słupów aluminiowych, anodowanych na kolor naturalnego aluminium o wysokości do oprawy h=5,5m i wysiegniku 1,5m o kącie 5 stopni wraz z fundamentem prefabrykowanym zgodnie z dokumentacją projektową","kpl",4]
["6.",null,"- zabudowa opraw oświetleniowych LED 105W, 4000K z optyką DW  zgodnie z dokumentacją projektową","kpl",8]
["7.",null,"- zabudowa opraw oświetleniowych LED 79W, 4000K z optyką T2 zgodnie z dokumentacją projektową","kpl",17]
["8.",null,"- zabudowa opraw oświetleniowych LED 67W, 4000K z optyką T2 zgodnie z dokumentacją projektową","kpl",3]
["9.",null,"- zabudowa opraw oświetleniowych LED 55W, 4000K z optyką T2 zgodnie z dokumentacją projektową","kpl",3]
["10.",null,"- zabudowa opraw oświetleniowych LED 86W, 6000K P asymetrycznych zgodnie z dokumentacją projektową","kpl",8]
["11.",null,"- zabudowa kabla YAKXS 4x35 zgodnie z dokumentacja projektową","mb",{"v":1110,"d":"1,110.00"}]
["12.",null,"- zabudowa bednarki FeZn30x4 zgodnie z dokumentacja projektową","mb",{"v":1110,"d":"1,110.00"}]
["13.",null,"- wykonanie przewiertów/przecisków rurą np. typu  SRS-G 110 zgodnie z dokumentacja projektową ","mb",{"v":112,"d":"112.00"}]
["14.",null,"- zabudowa rur ochronncyh np. typu  SRS 110 zgodnie z dokumentacja projektową ","mb",{"v":64,"d":"64.00"}]
["15.",null,"- zabudowa rur ochronncyh np. typu DVK 110 zgodnie z dokumentacja projektową ","mb",{"v":92,"d":"92.00"}]
["16.",null,"- zabudowa złącza słupowego/tabliczki słupowej zgodnie z dokumentacja projektową ","kpl.",{"v":39,"d":"39.00"}]
["17.",null,"- zabudowa uziomu stalowego ocynkowanego pogrążalnego fi 20, l=2x12m (R<10Ω)  zgodnie z dokumentacja projektową ","kpl.",{"v":1,"d":"1.00"}]
["18.",null,"- zabudowa uziomu stalowego ocynkowanego pogrążalnego fi 20, l=12m (R<30Ω)  zgodnie z dokumentacja projektową ","kpl.",{"v":5,"d":"5.00"}]
["19.",null,"- zabudowa przewodu w słupie typu YDYżo 3x2,5  zgodnie z dokumentacja projektową ","mb",{"v":507,"d":"507.00"}]
["20.",null,"- wykonanie pomiarów elektrycznych powykonawczych ","kpl.",{"v":1,"d":"1.00"}]
["21.",null,"- wykonanie pomiarów fotometrycznych powykonawczych ","kpl.",{"v":1,"d":"1.00"}]
["22.",null,"- obsługa geodezyjna ","kpl.",{"v":1,"d":"1.00"}]
["23.",null,"- demontż istniejącego punktu oświetleniowego kompletnie wyposażonego typu P/ŻN-10 wraz z oprawą ","kpl",2]
["24.",null,"- demontaż istniejącej szafki oświetleniowej ze słupa ","kpl",1]
["25.",null,"- demontaż przewodu napowietrznego AsXSn 2x25","mb",40]
[null,"RAZEM ",{"$nulls":4},{"$f":"SUM(G77:G101)","v":{"v":0,"d":"0.00"}}]
["Budowa oświetlenia drogowego w m. Bartoszewice i m. Czaple od km 22+580 do km 23+010"]
["1.",null,"- zabudowa szafy oświetlenia ulicznego SOU-3 zgodnie z dokumentacją projektową","kpl",1]
["2.",null,"- zabudowa słupów aluminiowych, anodowanych na kolor naturalnego aluminium o wysokości do oprawy h=10m i wysiegniku 2,5m o kącie 5 stopni wraz z fundamentem prefabrykowanym zgodnie z dokumentacją projektową","kpl",11]
["3.",null,"- zabudowa słupów aluminiowych, anodowanych na kolor naturalnego aluminium o wysokości do oprawy h=10m i wysiegniku 1m o kącie 5 stopni wraz z fundamentem prefabrykowanym zgodnie z dokumentacją projektową","kpl",11]
["4.",null,"- zabudowa słupów aluminiowych, anodowanych na kolor naturalnego aluminium o wysokości do oprawy h=5,5m i wysiegniku 2,5m o kącie 5 stopni wraz z fundamentem prefabrykowanym zgodnie z dokumentacją projektową","kpl",4]
["5.",null,"- zabudowa słupów aluminiowych, anodowanych na kolor naturalnego aluminium o wysokości do oprawy h=5,5m i wysiegniku 1,5m o kącie 5 stopni wraz z fundamentem prefabrykowanym zgodnie z dokumentacją projektową","kpl",4]
["6.",null,"- zabudowa opraw oświetleniowych LED 105W, 4000K z optyką DW  zgodnie z dokumentacją projektową","kpl",8]
["7.",null,"- zabudowa opraw oświetleniowych LED 79W, 4000K z optyką T2 zgodnie z dokumentacją projektową","kpl",6]
["8.",null,"- zabudowa opraw oświetleniowych LED 67W, 4000K z optyką T2 zgodnie z dokumentacją projektową","kpl",4]
["9.",null,"- zabudowa opraw oświetleniowych LED 55W, 4000K z optyką T2 zgodnie z dokumentacją projektową","kpl",4]
["10.",null,"- zabudowa opraw oświetleniowych LED 86W, 6000K P asymetrycznych zgodnie z dokumentacją projektową","kpl",8]
["11.",null,"- zabudowa kabla YAKXS 4x35 zgodnie z dokumentacja projektową","mb",{"v":855,"d":"855.00"}]
["12.",null,"- zabudowa bednarki FeZn30x4 zgodnie z dokumentacja projektową","mb",{"v":855,"d":"855.00"}]
["13.",null,"- wykonanie przewiertów/przecisków rurą np. typu  SRS-G 110 zgodnie z dokumentacja projektową ","mb",{"v":92,"d":"92.00"}]
["14.",null,"- zabudowa rur ochronncyh np. typu  SRS 110 zgodnie z dokumentacja projektową ","mb",{"v":40,"d":"40.00"}]
["15.",null,"- zabudowa rur ochronncyh np. typu DVK 110 zgodnie z dokumentacja projektową ","mb",{"v":74,"d":"74.00"}]
["16.",null,"- zabudowa złącza słupowego/tabliczki słupowej zgodnie z dokumentacja projektową ","kpl.",{"v":30,"d":"30.00"}]
["17.",null,"- zabudowa uziomu stalowego ocynkowanego pogrążalnego fi 20, l=2x12m (R<10Ω)  zgodnie z dokumentacja projektową ","kpl.",{"v":1,"d":"1.00"}]
["18.",null,"- zabudowa uziomu stalowego ocynkowanego pogrążalnego fi 20, l=12m (R<30Ω)  zgodnie z dokumentacja projektową ","kpl.",{"v":5,"d":"5.00"}]
["19.",null,"- zabudowa przewodu w słupie typu YDYżo 3x2,5  zgodnie z dokumentacja projektową ","mb",{"v":390,"d":"390.00"}]
["20.",null,"- wykonanie pomiarów elektrycznych powykonawczych ","kpl.",{"v":1,"d":"1.00"}]
["21.",null,"- wykonanie pomiarów fotometrycznych powykonawczych ","kpl.",{"v":1,"d":"1.00"}]
["22.",null,"- obsługa geodezyjna ","kpl.",{"v":1,"d":"1.00"}]
[null,"RAZEM ",{"$nulls":4},{"$f":"SUM(G104:G125)","v":{"v":0,"d":"0.00"}}]
["Budowa oświetlenia drogowego w m. Trzcianek od km 25+015 do km 25+445"]
["1.",null,"- zabudowa szafy oświetlenia ulicznego SOU-3 zgodnie z dokumentacją projektową","kpl",1]
["2.",null,"- zabudowa słupów aluminiowych, anodowanych na kolor naturalnego aluminium o wysokości do oprawy h=10m i wysiegniku 2,5m o kącie 5 stopni wraz z fundamentem prefabrykowanym zgodnie z dokumentacją projektową","kpl",6]
["3.",null,"- zabudowa słupów aluminiowych, anodowanych na kolor naturalnego aluminium o wysokości do oprawy h=10m i wysiegniku 1m o kącie 5 stopni wraz z fundamentem prefabrykowanym zgodnie z dokumentacją projektową","kpl",16]
["4.",null,"- zabudowa słupów aluminiowych, anodowanych na kolor naturalnego aluminium o wysokości do oprawy h=5,5m i wysiegniku 2,5m o kącie 5 stopni wraz z fundamentem prefabrykowanym zgodnie z dokumentacją projektową","kpl",4]
["5.",null,"- zabudowa słupów aluminiowych, anodowanych na kolor naturalnego aluminium o wysokości do oprawy h=5,5m i wysiegniku 1,5m o kącie 5 stopni wraz z fundamentem prefabrykowanym zgodnie z dokumentacją projektową","kpl",4]
["6.",null,"- zabudowa opraw oświetleniowych LED 105W, 4000K z optyką DW  zgodnie z dokumentacją projektową","kpl",8]
["7.",null,"- zabudowa opraw oświetleniowych LED 79W, 4000K z optyką T2 zgodnie z dokumentacją projektową","kpl",6]
["8.",null,"- zabudowa opraw oświetleniowych LED 67W, 4000K z optyką T2 zgodnie z dokumentacją projektową","kpl",4]
["9.",null,"- zabudowa opraw oświetleniowych LED 55W, 4000K z optyką T2 zgodnie z dokumentacją projektową","kpl",4]
["10.",null,"- zabudowa opraw oświetleniowych LED 86W, 6000K P asymetrycznych zgodnie z dokumentacją projektową","kpl",8]
["11.",null,"- zabudowa kabla YAKXS 4x35 zgodnie z dokumentacja projektową","mb",{"v":810,"d":"810.00"}]
["12.",null,"- zabudowa bednarki FeZn30x4 zgodnie z dokumentacja projektową","mb",{"v":810,"d":"810.00"}]
["13.",null,"- wykonanie przewiertów/przecisków rurą np. typu  SRS-G 110 zgodnie z dokumentacja projektową ","mb",{"v":88,"d":"88.00"}]
["14.",null,"- zabudowa rur ochronncyh np. typu  SRS 110 zgodnie z dokumentacja projektową ","mb",{"v":46,"d":"46.00"}]
["15.",null,"- zabudowa rur ochronncyh np. typu DVK 110 zgodnie z dokumentacja projektową ","mb",{"v":72,"d":"72.00"}]
["16.",null,"- zabudowa złącza słupowego/tabliczki słupowej zgodnie z dokumentacja projektową ","kpl.",{"v":30,"d":"30.00"}]
["17.",null,"- zabudowa uziomu stalowego ocynkowanego pogrążalnego fi 20, l=2x12m (R<10Ω)  zgodnie z dokumentacja projektową ","kpl.",{"v":1,"d":"1.00"}]
["18.",null,"- zabudowa uziomu stalowego ocynkowanego pogrążalnego fi 20, l=12m (R<30Ω)  zgodnie z dokumentacja projektową ","kpl.",{"v":5,"d":"5.00"}]
["19.",null,"- zabudowa przewodu w słupie typu YDYżo 3x2,5  zgodnie z dokumentacja projektową ","mb",{"v":390,"d":"390.00"}]
["20.",null,"- wykonanie pomiarów elektrycznych powykonawczych ","kpl.",{"v":1,"d":"1.00"}]
["21.",null,"- wykonanie pomiarów fotometrycznych powykonawczych ","kpl.",{"v":1,"d":"1.00"}]
["22.",null,"- obsługa geodezyjna ","kpl.",{"v":1,"d":"1.00"}]
[null,"RAZEM ",{"$nulls":4},{"$f":"SUM(G128:G149)","v":{"v":0,"d":"0.00"}}]
["Budowa oświetlenia drogowego w m. Wąbrzeźno od km 28+890 do km 29+440"]
["1.",null,"- zabudowa szafy oświetlenia ulicznego SOU-3 zgodnie z dokumentacją projektową","kpl",1]
["2.",null,"- zabudowa słupów aluminiowych, anodowanych na kolor naturalnego aluminium o wysokości do oprawy h=10m i wysiegniku 2,5m o kącie 5 stopni wraz z fundamentem prefabrykowanym zgodnie z dokumentacją projektową","kpl",7]
["3.",null,"- zabudowa słupów aluminiowych, anodowanych na kolor naturalnego aluminium o wysokości do oprawy h=10m i wysiegniku 1m o kącie 5 stopni wraz z fundamentem prefabrykowanym zgodnie z dokumentacją projektową","kpl",12]
["4.",null,"- zabudowa słupów aluminiowych, anodowanych na kolor naturalnego aluminium o wysokości do oprawy h=5,5m i wysiegniku 2,5m o kącie 5 stopni wraz z fundamentem prefabrykowanym zgodnie z dokumentacją projektową","kpl",1]
["5.",null,"- zabudowa słupów aluminiowych, anodowanych na kolor naturalnego aluminium o wysokości do oprawy h=5,5m i wysiegniku 1,5m o kącie 5 stopni wraz z fundamentem prefabrykowanym zgodnie z dokumentacją projektową","kpl",1]
["6.",null,"- zabudowa opraw oświetleniowych LED 105W, 4000K z optyką DW  zgodnie z dokumentacją projektową","kpl",4]
["7.",null,"- zabudowa opraw oświetleniowych LED 79W, 4000K z optyką T2 zgodnie z dokumentacją projektową","kpl",12]
["8.",null,"- zabudowa opraw oświetleniowych LED 67W, 4000K z optyką T2 zgodnie z dokumentacją projektową","kpl",2]
["9.",null,"- zabudowa opraw oświetleniowych LED 55W, 4000K z optyką T2 zgodnie z dokumentacją projektową","kpl",1]
["10.",null,"- zabudowa opraw oświetleniowych LED 86W, 6000K P asymetrycznych zgodnie z dokumentacją projektową","kpl",2]
["11.",null,"- zabudowa kabla YAKXS 4x35 zgodnie z dokumentacja projektową","mb",{"v":702,"d":"702.00"}]
["12.",null,"- zabudowa bednarki FeZn30x4 zgodnie z dokumentacja projektową","mb",{"v":702,"d":"702.00"}]
["13.",null,"- wykonanie przewiertów/przecisków rurą np. typu  SRS-G 110 zgodnie z dokumentacja projektową ","mb",{"v":42,"d":"42.00"}]
["14.",null,"- zabudowa rur ochronncyh np. typu  SRS 110 zgodnie z dokumentacja projektową ","mb",{"v":32,"d":"32.00"}]
["15.",null,"- zabudowa rur ochronncyh np. typu DVK 110 zgodnie z dokumentacja projektową ","mb",{"v":94,"d":"94.00"}]
["16.",null,"- zabudowa złącza słupowego/tabliczki słupowej zgodnie z dokumentacja projektową ","kpl.",{"v":21,"d":"21.00"}]
["17.",null,"- zabudowa uziomu stalowego ocynkowanego pogrążalnego fi 20, l=2x12m (R<10Ω)  zgodnie z dokumentacja projektową ","kpl.",{"v":1,"d":"1.00"}]
["18.",null,"- zabudowa uziomu stalowego ocynkowanego pogrążalnego fi 20, l=12m (R<30Ω)  zgodnie z dokumentacja projektową ","kpl.",{"v":3,"d":"3.00"}]
["19.",null,"- zabudowa przewodu w słupie typu YDYżo 3x2,5  zgodnie z dokumentacja projektową ","mb",{"v":273,"d":"273.00"}]
["20.",null,"- wykonanie pomiarów elektrycznych powykonawczych ","kpl.",{"v":1,"d":"1.00"}]
["21.",null,"- wykonanie pomiarów fotometrycznych powykonawczych ","kpl.",{"v":1,"d":"1.00"}]
["22.",null,"- obsługa geodezyjna ","kpl.",{"v":1,"d":"1.00"}]
["23.",null,"- demontż istniejącego punktu oświetleniowego kompletnie wyposażonego typu EOC-10,5/2,5 wraz z oprawą ","kpl",1]
["24.",null,"- demontaż linii kablowej YAKXS 4x35","mb",42]
[null,"RAZEM ",{"$nulls":4},{"$f":"SUM(G152:G175)","v":{"v":0,"d":"0.00"}}]
[{"$nulls":6},{"$f":"SUM(G176,G150,G126,G102,G75,G51,G27)","v":{"v":0,"d":"0.00"}}]
[null,"________________",null,"______________"]
[null,"miejscowość, data",null,"podpis Wykonawcy"]

{"sheet":"Zasilanie","index":11,"n_rows":22,"n_cols":7,"rows_kept":22,"merged":[[0,0,0,6],[1,0,1,1],[1,2,1,6],[2,0,2,1],[2,2,2,6],[3,0,3,1],[3,2,3,6],[6,0,6,6],[7,0,8,0],[7,1,8,1],[7,2,8,2],[7,3,7,4],[7,5,8,5],[7,6,8,6],[10,0,10,5],[17,1,17,5]]}
[{"$f":"DANE!B3","v":"Aktualizacja i optymalizacja dokumentacji projektowej zadania wraz z pełnieniem nadzoru autorskiego podczas realizacji Inwestycji tj.: ”Rozbudowa drogi wojewódzkiej nr 548 Stolno-Wąbrzeźno od km 0+005 do km 29+619 z wyłączeniem węzła autostradowego w m. Lisewo od km 14+144 do km 15+146” \nOdcinek nr 2 – od km 15+146 do km 29+619"}]
["Branża: ",null,"BRANŻA ELEKTROENERGETYCZNA 22.07"]
["Obiekt:",null,"Zasilanie obiektów"]
["Kod CPV:",null,"45000000-9\nRoboty budowlane w zakresie wznoszenia kompletnych obiektów budowlanych lub ich części oraz roboty w zakresie inżynierii lądowej i wodnej "]
["Poz.","Podstawa wyceny","Wyszczególnienie elementu rozliczeniowego","Jedn.","Ilość jedn.","Cena jedn.","Wartość robót"]
[null,"U.07.07.01","Zasilanie obiektów","x","x","x","x"]
["ZASILANIE URZĄDZEŃ"]
["L.p.","Numer \nSTWiORB","Wyszczególnienie elementu rozliczeniowego","Jednostka",null,"Cena jednostkowa","Wartość robót"]
[{"$nulls":3},"Nazwa","Ilość"]
[null,"U.01.03.02","Przebudowa i budowa kablowych linii energetycznych","x","x","x","x"]
["Budowa zasilania pompowni PD3 w m. Płużnica w km 19+085 "]
["1.",null,"- zabudowa kabla YKXS 4x25 zgodnie z dokumentacja projektową","mb",{"v":55,"d":"55.00"}]
["2.",null,"- zabudowa rur ochronncyh np. typu SRS 110 zgodnie z dokumentacja projektową ","mb",{"v":16,"d":"16.00"}]
["3.",null,"- zabudowa rur ochronncyh np. typu DVK 110 zgodnie z dokumentacja projektową ","mb",{"v":12,"d":"12.00"}]
["4.",null,"- zabudowa uziomu stalowego ocynkowanego pogrążalnego fi 20, l=2x12m (R<10Ω)  zgodnie z dokumentacja projektową ","kpl.",{"v":1,"d":"1.00"}]
["5.",null,"- wykonanie pomiarów elektrycznych powykonawczych ","kpl.",{"v":1,"d":"1.00"}]
["6.",null,"- obsługa geodezyjna ","kpl.",{"v":1,"d":"1.00"}]
[null,"RAZEM ",{"$nulls":4},{"$f":"SUM(G12:G17)","v":{"v":0,"d":"0.00"}}]
[]
[]
[null,"________________",null,"______________"]
[null,"miejscowość, data",null,"podpis Wykonawcy"]

{"sheet":"Melioracja","index":12,"n_rows":37,"n_cols":7,"rows_kept":37,"merged":[[0,0,0,6],[1,0,1,1],[1,2,1,6],[2,0,2,1],[2,2,2,6],[3,0,3,1],[3,2,3,6]]}
[{"$f":"DANE!B3","v":"Aktualizacja i optymalizacja dokumentacji projektowej zadania wraz z pełnieniem nadzoru autorskiego podczas realizacji Inwestycji tj.: ”Rozbudowa drogi wojewódzkiej nr 548 Stolno-Wąbrzeźno od km 0+005 do km 29+619 z wyłączeniem węzła autostradowego w m. Lisewo od km 14+144 do km 15+146” \nOdcinek nr 2 – od km 15+146 do km 29+619"}]
["Branża: ",null,"BRANŻA MELIORACYJNA 22.07"]
["Obiekt:",null,"Melioracje szczegółowe"]
["Kod CPV:",null,"45000000-9\nRoboty budowlane w zakresie wznoszenia kompletnych obiektów budowlanych lub ich części oraz roboty w zakresie inżynierii lądowej i wodnej "]
["Poz.","Podstawa wyceny","Wyszczególnienie elementu rozliczeniowego","Jedn.","Ilość jedn.","Cena jedn.","Wartość robót"]
[null,null,"Roboty przygotowawcze",null,null,"x","x"]
[1,null,"Roboty pomiarowe - wytyczenie trasy rurociągów","m",{"v":281.5,"d":"281.50"}]
[2,null,"Wykopy kontrolne","m3",{"v":532,"d":"532.00"}]
[null,null,"Roboty ziemne",null,null,"X","X"]
[3,null,"Odwodnienie wykopów za pomocą igłofiltrów wpłukiwanych jednostronnie DN32","mb",{"v":281.5,"d":"281.50"}]
[4,null,"Usunięcie warstwy ziemi urodzajnej 30 cm wraz z odtworzeniem (rozplantowaniem po zasypaniu wykopu)","m2",1582.03]
[5,null,"Wykopy mechaniczne z rozkopem o ścianach z nachyleniem 1:1.5","m3",3282.29]
[6,null,"Podsypka, obsypka piaskowa wraz z zagęszczaniem ręcznym","m3",{"v":112.60000000000001,"d":"112.60"}]
[7,null,"Zasypanie wykopów gruntem rodzimym wraz z zagęszczaniem mechanicznym","m3",3126.06]
[8,null,"Wywiezienie nadmiaru gruntu z wykopu i składowanie na terenie budowy","m3",156.23]
[null,null,"Rurociągi PVC ze ścianką litą",null,null,"X","X"]
[9,null,"Rura PVC DN 200*","m",187.67]
[10,null,"Rura PVC DN 300*","m",46.92]
[11,null,"Rura PVC DN 500*","m",46.92]
[null,null,"Rury osłonowe PE",null,null,"X","X"]
[12,null,"Rura osłonowa DN 300*","m",101.87]
[13,null,"Rura osłonowa DN 400*","m",46.92]
[14,null,"Rura osłonowa DN 800*","m",46.92]
[15,null,"Płozy dystansowe dla PE 300 R28*","szt.",{"v":40,"d":"40.00"}]
[16,null,"Płozy dystansowe dla PE 400 R28*","szt.",{"v":50,"d":"50.00"}]
[17,null,"Płozy dystansowe dla PE 800 SM DUO I*","szt.",{"v":50,"d":"50.00"}]
[null,null,"Studnie melioracyjne bez dna",null,null,"X","X"]
[18,null,"Studzienka śred. 1 m, wys. 3.5 m*","kpl",{"v":21,"d":"21.00"}]
[null,null,"Wyloty melioracyjne",null,null,"X","X"]
[19,null,"Wylot prefabrykowany DN300 wg KPED 02.17*","kpl",{"v":10,"d":"10.00"}]
[20,null,"Wylot prefabrykowany DN600 wg KPED 02.16*","kpl",{"v":1,"d":"1.00"}]
[null,null,"Zaślepki",null,null,"X","X"]
[21,null,"Zsąlepka PCV lub korek betonowy","kpl",{"v":4,"d":"4.00"}]
[{"$nulls":6},{"$f":"SUM(G7:G33)","v":{"v":0,"d":"0.00"}}]
[]
[null,"________________",null,"______________"]
[null,"miejscowość, data",null,"podpis Wykonawcy"]